Workbook

Sheet Kühlsegel
A1: Halbempirisches Modell für plattenförmige Kühlsegel | C1: FHNW | D1: Institut Nachhaltigkeit und Energie am Bau | V1: Wärmeübergang Rohr - Blech
A2: Parameter des empirischen Modells nach DIN EN 14240 aus Datenblatt | I2: Temperaturverteilung | X2: L_P | Y2: U
A3: Leistungsfaktor k | B3: W/Kmn | C3: 11.447 | I3: Ort | J3: ϑ(x) | X3: W/Km | Y3: W/Km2
A4: Exponent n | B4: - | C4: 1.068 | I4: m | J4: °C | V4: Recknagel (2021) | W4: Blechlamellen + Rohre | Y4: 15..35
A5: Abmessungen des Kühlsegels | E5: Prüfraum | I5: 0 | J5: =Temperatur_oertlich(C$33+C$35,C$10,I5,C$16,C$25,C$18,C$9) -> 19.67332046 | W5: Al-Strangpressprofil + Rohr | Y5: 180
A6: Breite B_P | B6: m | C6: 0.865 | E6: Länge | F6: m | G6: 4.1 | I6: =C16/10 -> 0.006708333333 | J6: =Temperatur_oertlich(C$33+C$35,C$10,I6,C$16,C$25,C$18,C$9) -> 19.66738669 | V6: Eismann (2015) | W6: Laser welding | X6: =20*0.003/0.001 -> 60
A7: Länge (Richtung der Strömungskanäle) L_P | B7: m | C7: 2.365 | E7: Breite | F7: m | G7: 4 | I7: =I6+I$6 -> 0.01341666667 | J7: =Temperatur_oertlich(C$33+C$35,C$10,I7,C$16,C$25,C$18,C$9) -> 19.64958536 | V7: Garg et al. (1981) | W7: Aluminiumblech + Rohr geklemmt | X7: 25.58111111
A8: Fläche einer Seite | B8: m2 | C8: =C6*C7 -> 2.045725 | E8: Höhe | F8: m | G8: 2.875 | I8: =I7+I$6 -> 0.020125 | J8: =Temperatur_oertlich(C$33+C$35,C$10,I8,C$16,C$25,C$18,C$9) -> 19.61991649 | W8: Aluminiumblech + Rohr genietet | X8: 27.32527778
A9: Dicke der Platte s | B9: m | C9: 0.002 | E9: Gesamte Oberfläche | F9: m2 | G9: =Oberfläche_Quader(G6,G7,G8) -> 79.375 | I9: 0.02683333333 | J9: =Temperatur_oertlich(C$33+C$35,C$10,I9,C$16,C$25,C$18,C$9) -> 19.57838006 | W9: Aluminiumblech + wärmeleitender Epoxi Klebstoff | X9: 38.95305556
A10: Durchmesser eines kreisförmigen Strömungskanals d | B10: m | C10: 0.01 | E10: Emissionsvermögen Raumflächen | F10: - | G10: 0.93 | I10: 0.03354166667 | J10: =Temperatur_oertlich(C$33+C$35,C$10,I10,C$16,C$25,C$18,C$9) -> 19.52497609
A11: Wärmeleitvermögen der Verbindung Rohr-Platte | B11: W/Km | C11: 60 | E11: Ref.temperatur des Raumknotens | F11: °C | G11: 26 | I11: 0.04025 | J11: =Temperatur_oertlich(C$33+C$35,C$10,I11,C$16,C$25,C$18,C$9) -> 19.45970456
A12: Höhe eines volldurchströmten Plattenspaltes h | B12: m | C12: 0.0035 | E12: Temperaturdifferenz Raum-Globus | F12: K | G12: 0.4 | I12: 0.04695833333 | J12: =Temperatur_oertlich(C$33+C$35,C$10,I12,C$16,C$25,C$18,C$9) -> 19.38256549
A13: Anzahl Strömungskanäle pro Plattenbreite n | B13: - | C13: 6 | I13: =I12+I$6 -> 0.05366666667 | J13: =Temperatur_oertlich(C$33+C$35,C$10,I13,C$16,C$25,C$18,C$9) -> 19.29355886
A14: Anzahl seriell geschaltete Strömungskanäle m | B14: - | C14: 6 | I14: =I13+I$6 -> 0.060375 | J14: =Temperatur_oertlich(C$33+C$35,C$10,I14,C$16,C$25,C$18,C$9) -> 19.19268469
A15: Querschnitt total | B15: m2 | C15: =Querschnitt(C10,C6,C12,C13,C14) -> 7.85375e-05 | I15: =I14+I$6 -> 0.06708333333 | J15: =Temperatur_oertlich(C$33+C$35,C$10,I15,C$16,C$25,C$18,C$9) -> 19.07994297
A16: Halbe Plattenbreite b zwischen zwei Strömungskanälen | B16: m | C16: =(C6-C13*C10)/(C13*2) -> 0.06708333333 | I16: =I15+C10 -> 0.07708333333 | J16: =J15 -> 19.07994297
A17: Stoffdaten | I17: =I16+I$6 -> 0.08379166667 | J17: =J14 -> 19.19268469
A18: Wärmeleitfähigkeit des Plattenmaterials | B18: W/Km | C18: 200 | E18: Emissionsvermögen der Oberseite | F18: - | G18: 0.93 | I18: 0.0905 | J18: =J13 -> 19.29355886
A19: Dichte von Wasser | B19: kg/m3 | C19: =rho_sat_Wasser(C24) -> 998.3906052 | E19: Emissionsvermögen der Unterseite | F19: - | G19: =G18 -> 0.93 | I19: 0.09720833333 | J19: =J12 -> 19.38256549
A20: Wärmeleitfähigkeit von Wasser | B20: W/Km | C20: =lamda_sat_Wasser(C24) -> 0.5955349625 | I20: 0.1039166667 | J20: =J11 -> 19.45970456
A21: Kinemat. Viskosität von Wasser | B21: m2/s | C21: =ny_sat_Wasser(C24) -> 1.094992562e-06 | I21: 0.110625 | J21: =J10 -> 19.52497609
A22: Wärmekapazität von Wasser | B22: J/kgK | C22: =cp_sat_Wasser(C24) -> 4189.657466 | I22: 0.1173333333 | J22: =J9 -> 19.57838006
A23: Betriebsbedingungen | E23: Flächenbezogener Durchfluss aus Datenblatt/Prüfbericht | I23: 0.1240416667 | J23: =J8 -> 19.61991649
A24: Mittlere Temperatur des Fluids | B24: °C | C24: 18 | E24: Gesamtmassenstrom im Test | F24: kg/h | G24: 198.2 | I24: =I23+I$6 -> 0.13075 | J24: =J7 -> 19.64958536
A25: Leistungsdichte Kühlsegel nach empirischem Modell | B25: W/m2 | C25: =qs_Kuehlsegel(C3,C4,G11,C24) -> 105.4852627 | F25: kg/m2s | G25: =G24/C8/3600 -> 0.02691249095 | I25: =I24+I$6 -> 0.1374583333 | J25: =J6 -> 19.66738669
A26: Flächenbezogener Massenstrom Wasser | B26: kg/m2s | C26: =G24/3600/C8 -> 0.02691249095 | I26: =I25+I$6 -> 0.1441666667 | J26: =J5 -> 19.67332046
A27: Volumenstrom | B27: m3/s | C27: =Volumenstrom(C26*C6*C7,C24) -> 5.514430451e-05
A28: Fliessgeschwindigkeit | B28: m/s | C28: =Fliessgeschwindigkeit(C27,C15) -> 0.7021397996
A29: Reynoldszahl | B29: - | C29: =Reynoldszahl_Kanal(C28,C10,C12,C21) -> 6412.279167
A30: Prandtlzahl Wasser | B30: - | C30: =C22*C21*C19/C20 -> 7.691001742
A31: Nusseltzahl | B31: - | C31: =Nu_Rohrstroemung(C29,C30) -> 46.05785718
A32: Wärmeübergang zum Fluid | B32: W/Km2 | C32: =alpha_Rohrstroemung(C31,C20,C10,C12) -> 2742.906425
A33: Temperatur an der Basis | B33: °C | C33: =Temperatur_Basis(C24,C16,C10,C32,C11,C18,C9,C25) -> 18.42994297
A34: Innerer Wärmedurchgangskoeffizient U | B34: W/Km2 | C34: =1/(C37/C25) -> 72.84448411 | I34: x | J34: ϑ_m | K34: ϑ_b | L34: ϑ_P | M34: ϑ_i
A35: Temperaturzuschlag zur Berücksichtigung der inhomogenität | B35: K | C35: 0.65 | D35: proportional zur Leistung | I35: m | J35: °C | K35: °C | L35: °C | M35: °C
A36: Mittlere Plattentemperatur (basierend auf Fluidtemp.) | B36: °C | C36: =Temperatur_Mittelwert(C24,C25,C10,C16,C11,C32,C18,C9,C35,C25) -> 19.44808854 | I36: 0 | J36: =C24 -> 18 | K36: =C33 -> 18.42994297 | L36: =C36 -> 19.44808854 | M36: =G11 -> 26
A37: Temperaturdifferenz | B37: K | C37: =C36-C24 -> 1.448088541 | I37: =I26 -> 0.1441666667 | J37: =J36 -> 18 | K37: =K36 -> 18.42994297 | L37: =L36 -> 19.44808854 | M37: =M36 -> 26
A38: Beispiel KIGO Standard
A39: Länge | B39: m | C39: 0.865 | S39: Re | T39: Nu
A40: Breite | B40: m | C40: 2.365 | S40: - | T40: -
A41: Blechdicke | B41: m | C41: 0.00064 | S41: 100 | T41: =Nu_Rohrstroemung(S41,C$30) -> 4.36
A42: Volumen | B42: m3 | C42: =C39*C40*C41 -> 0.001309264 | S42: 500 | T42: =Nu_Rohrstroemung(S42,C$30) -> 4.36
A43: Dichte Edelstahl | B43: kg/m3 | C43: 7700 | S43: 1700 | T43: =Nu_Rohrstroemung(S43,C$30) -> 4.36
A44: Masse | B44: kg/m3 | C44: =2*C42*C43 -> 20.1626656 | S44: 1900 | T44: =Nu_Rohrstroemung(S44,C$30) -> 4.36
A45: Masse gefüllt | B45: kg/m3 | C45: 25.2 | S45: 2100 | T45: =Nu_Rohrstroemung(S45,C$30) -> 4.36
A46: Dichte Wasser | B46: kg/m3 | C46: =rho_sat_Wasser(C24) -> 998.3906052 | S46: 2300 | T46: =Nu_Rohrstroemung(S46,C$30) -> 4.36
A47: Volumen Wasser | B47: m3 | C47: =(C45-C44)/C46 -> 0.005045454528 | S47: 2500 | T47: =Nu_Rohrstroemung(S47,C$30) -> 6.387968214
A48: Durchströmter Anteil | B48: - | C48: 0.7 | S48: 2700 | T48: =Nu_Rohrstroemung(S48,C$30) -> 8.415936427
A49: Mittlere Höhe eines volldurchströmten Plattenspaltes | B49: m | C49: =C47/(C39*C40)/C48 -> 0.003523343648 | D49: wird in Zelle C12 benötigt | S49: 2900 | T49: =Nu_Rohrstroemung(S49,C$30) -> 10.44390464
S50: 3100 | T50: =Nu_Rohrstroemung(S50,C$30) -> 12.47187285
S51: 3300 | T51: =Nu_Rohrstroemung(S51,C$30) -> 14.49984107
S52: 3500 | T52: =Nu_Rohrstroemung(S52,C$30) -> 16.52780928
S53: 3700 | T53: =Nu_Rohrstroemung(S53,C$30) -> 18.5557775
S54: 3900 | T54: =Nu_Rohrstroemung(S54,C$30) -> 20.58374571
S55: 4100 | T55: =Nu_Rohrstroemung(S55,C$30) -> 22.61171392
S56: 4500 | T56: =Nu_Rohrstroemung(S56,C$30) -> 26.66765035
S57: 5000 | T57: =Nu_Rohrstroemung(S57,C$30) -> 31.73757088
S58: 5500 | T58: =Nu_Rohrstroemung(S58,C$30) -> 36.80749142
S59: 6000 | T59: =Nu_Rohrstroemung(S59,C$30) -> 41.87741195
S60: 6500 | T60: =Nu_Rohrstroemung(S60,C$30) -> 46.94733249
S61: 7000 | T61: =Nu_Rohrstroemung(S61,C$30) -> 52.01725302
S62: 8000 | T62: =Nu_Rohrstroemung(S62,C$30) -> 62.15709409
S63: 10000 | T63: =Nu_Rohrstroemung(S63,C$30) -> 82.43677623
S64: 12000 | T64: =Nu_Rohrstroemung(S64,C$30) -> 95.38190603
S65: 14000 | T65: =Nu_Rohrstroemung(S65,C$30) -> 107.9004929
S66: 16000 | T66: =Nu_Rohrstroemung(S66,C$30) -> 120.065155
S67: 18000 | T67: =Nu_Rohrstroemung(S67,C$30) -> 131.9286152
S68: 20000 | T68: =Nu_Rohrstroemung(S68,C$30) -> 143.530764
S69: 50000 | T69: =Nu_Rohrstroemung(S69,C$30) -> 298.7424947
S70: 100000 | T70: =Nu_Rohrstroemung(S70,C$30) -> 520.1408941

Sheet Prototyp
A1: Analytisches Modell für plattenförmige Kühlsegel | C1: FHNW | D1: Institut Nachhaltigkeit und Energie am Bau | Z1: Wärmeübergang Rohr - Blech
A2: Parameter des empirischen Modells nach DIN EN 14240 aus Datenblatt | M2: Temperaturverteilung | AB2: L_P | AC2: U
A3: Leistungsfaktor k | B3: W/Kmn | C3: =EXP(D4) -> 10.42489746 | M3: Ort | N3: ϑ(x) | AB3: W/Km | AC3: W/Km2
A4: Exponent n | B4: - | C4: =LINEST(LN(C25:G25),LN(C23:G23)) -> 1.034665818 | D4: 2.344196931 | M4: m | N4: °C | Z4: Recknagel (2021) | AA4: Blechlamellen + Rohre | AC4: 15..35
A5: Abmessungen des Kühlsegels | I5: Prüfraum | M5: 0 | N5: =Temperatur_oertlich(C$33+C$35,C$10,M5,C$16,C$25,C$18,C$9) -> 19.62678423 | AA5: Al-Strangpressprofil + Rohr | AC5: 180
A6: Breite B_P | B6: m | C6: 0.865 | I6: Länge | J6: m | K6: 4.1 | M6: =C16/10 -> 0.006708333333 | N6: =Temperatur_oertlich(C$33+C$35,C$10,M6,C$16,C$25,C$18,C$9) -> 19.62174089 | Z6: Eismann (2015) | AA6: Laser welding | AB6: =20*0.003/0.001 -> 60
A7: Länge (Richtung der Strömungskanäle) L_P | B7: m | C7: 2.365 | I7: Breite | J7: m | K7: 400 | M7: =M6+M$6 -> 0.01341666667 | N7: =Temperatur_oertlich(C$33+C$35,C$10,M7,C$16,C$25,C$18,C$9) -> 19.60661088 | Z7: Garg et al. (1981) | AA7: Aluminiumblech + Rohr geklemmt | AB7: 25.58111111
A8: Fläche einer Seite | B8: m2 | C8: =C6*C7 -> 2.045725 | I8: Höhe | J8: m | K8: 2.875 | M8: =M7+M$6 -> 0.020125 | N8: =Temperatur_oertlich(C$33+C$35,C$10,M8,C$16,C$25,C$18,C$9) -> 19.5813942 | AA8: Aluminiumblech + Rohr genietet | AB8: 27.32527778
A9: Dicke der Platte s | B9: m | C9: 0.002 | I9: Gesamte Oberfläche | J9: m2 | K9: =Oberfläche_Quader(K6,K7,K8) -> 5603.575 | M9: 0.02683333333 | N9: =Temperatur_oertlich(C$33+C$35,C$10,M9,C$16,C$25,C$18,C$9) -> 19.54609085 | AA9: Aluminiumblech + wärmeleitender Epoxi Klebstoff | AB9: 38.95305556
A10: Durchmesser eines kreisförmigen Strömungskanals d | B10: m | C10: 0.01 | I10: Emissionsvermögen Raumflächen | J10: - | K10: 0.93 | M10: 0.03354166667 | N10: =Temperatur_oertlich(C$33+C$35,C$10,M10,C$16,C$25,C$18,C$9) -> 19.50070083
A11: Wärmeleitvermögen der Verbindung Rohr-Platte | B11: W/Km | C11: 40 | I11: Temperatur des Raumknotens | J11: °C | K11: 26 | M11: 0.04025 | N11: =Temperatur_oertlich(C$33+C$35,C$10,M11,C$16,C$25,C$18,C$9) -> 19.44522414
A12: Höhe eines volldurchströmten Plattenspaltes | B12: m | C12: 0.0035 | M12: 0.04695833333 | N12: =Temperatur_oertlich(C$33+C$35,C$10,M12,C$16,C$25,C$18,C$9) -> 19.37966077
A13: Anzahl Strömungskanäle pro Plattenbreite n | B13: - | C13: 6 | M13: =M12+M$6 -> 0.05366666667 | N13: =Temperatur_oertlich(C$33+C$35,C$10,M13,C$16,C$25,C$18,C$9) -> 19.30401073
A14: Anzahl seriell geschaltete Strömungskanäle m | B14: - | C14: 6 | M14: =M13+M$6 -> 0.060375 | N14: =Temperatur_oertlich(C$33+C$35,C$10,M14,C$16,C$25,C$18,C$9) -> 19.21827402
A15: Querschnitt total | B15: m2 | C15: =Querschnitt(C10,C6,C12,C13,C14) -> 7.85375e-05 | M15: =M14+M$6 -> 0.06708333333 | N15: =Temperatur_oertlich(C$33+C$35,C$10,M15,C$16,C$25,C$18,C$9) -> 19.12245064
A16: Halbe Plattenbreite b zwischen zwei Strömungskanälen | B16: m | C16: =(C6-C13*C10)/(C13*2) -> 0.06708333333 | M16: =M15+C10 -> 0.07708333333 | N16: =N15 -> 19.12245064
A17: Stoffdaten | M17: =M16+M$6 -> 0.08379166667 | N17: =N14 -> 19.21827402
A18: Wärmeleitfähigkeit des Plattenmaterials | B18: W/Km | C18: 200 | I18: Emissionsvermögen der Oberseite | J18: - | K18: 0.93 | M18: 0.0905 | N18: =N13 -> 19.30401073
A19: Dichte von Wasser | B19: kg/m3 | C19: =rho_sat_Wasser(C24) -> 998.3906052 | D19: =rho_sat_Wasser(D24) -> 998.1060952 | E19: =rho_sat_Wasser(E24) -> 997.7999886 | F19: =rho_sat_Wasser(F24) -> 997.4726256 | G19: =rho_sat_Wasser(G24) -> 997.1243414 | I19: Emissionsvermögen der Unterseite | J19: - | K19: =K18 -> 0.93 | M19: 0.09720833333 | N19: =N12 -> 19.37966077
A20: Wärmeleitfähigkeit von Wasser | B20: W/Km | C20: =lamda_sat_Wasser(C24) -> 0.5955349625 | D20: =lamda_sat_Wasser(D24) -> 0.5980251557 | E20: =lamda_sat_Wasser(E24) -> 0.6004753537 | F20: =lamda_sat_Wasser(F24) -> 0.6028857569 | G20: =lamda_sat_Wasser(G24) -> 0.6052565661 | M20: 0.1039166667 | N20: =N11 -> 19.44522414
A21: Kinemat. Viskosität von Wasser | B21: m2/s | C21: =ny_sat_Wasser(C24) -> 1.094992562e-06 | D21: =ny_sat_Wasser(D24) -> 1.056284584e-06 | E21: =ny_sat_Wasser(E24) -> 1.019358767e-06 | F21: =ny_sat_Wasser(F24) -> 9.841288151e-07 | G21: =ny_sat_Wasser(G24) -> 9.505126437e-07 | M21: 0.110625 | N21: =N10 -> 19.50070083
A22: Wärmekapazität von Wasser | B22: J/kgK | C22: =cp_sat_Wasser(C24) -> 4189.657466 | D22: =cp_sat_Wasser(D24) -> 4188.19153 | E22: =cp_sat_Wasser(E24) -> 4186.831593 | F22: =cp_sat_Wasser(F24) -> 4185.575146 | G22: =cp_sat_Wasser(G24) -> 4184.419728 | M22: 0.1173333333 | N22: =N9 -> 19.54609085
A23: Betriebsbedingungen | B23: K | C23: =$K11-C24 -> 8 | D23: 6.5 | E23: 5 | F23: 3.5 | G23: 2 | H23: Mittlere Teperaturdifferenz | M23: 0.1240416667 | N23: =N8 -> 19.5813942
A24: Mittlere Temperatur des Fluids | B24: °C | C24: 18 | D24: 19.5 | E24: 21 | F24: 22.5 | G24: 24 | M24: =M23+M$6 -> 0.13075 | N24: =N7 -> 19.60661088
A25: Leistungsdichte Kühlsegel | B25: W/m2 | C25: 89.65584532 | D25: 72.29183907 | E25: 55.11800044 | F25: 38.09362622 | G25: 21.3614012 | M25: =M24+M$6 -> 0.1374583333 | N25: =N6 -> 19.62174089
A26: Flächenbezogener Massenstrom Wasser | B26: kg/m2s | C26: 0.027 | D26: 0.027 | E26: 0.027 | F26: 0.027 | G26: 0.027 | M26: =M25+M$6 -> 0.1441666667 | N26: =N5 -> 19.62678423
A27: Volumenstrom | B27: m3/s | C27: =Volumenstrom(C26*$C6*$C7,C24) -> 5.532361253e-05 | D27: =Volumenstrom(D26*$C6*$C7,D24) -> 5.533938252e-05 | E27: =Volumenstrom(E26*$C6*$C7,E24) -> 5.535635962e-05 | F27: =Volumenstrom(F26*$C6*$C7,F24) -> 5.537452716e-05 | G27: =Volumenstrom(G26*$C6*$C7,G24) -> 5.539386886e-05
A28: Fliessgeschwindigkeit | B28: m/s | C28: =Fliessgeschwindigkeit(C27,$C15) -> 0.7044228876 | D28: =Fliessgeschwindigkeit(D27,$C15) -> 0.7046236832 | E28: =Fliessgeschwindigkeit(E27,$C15) -> 0.7048398487 | F28: =Fliessgeschwindigkeit(F27,$C15) -> 0.7050711719 | G28: =Fliessgeschwindigkeit(G27,$C15) -> 0.7053174452
A29: Reynoldszahl | B29: - | C29: =Reynoldszahl_Kanal(C28,$C10,$C12,C21) -> 6433.129427 | D29: =Reynoldszahl_Kanal(D28,$C10,$C12,D21) -> 6670.775037 | E29: =Reynoldszahl_Kanal(E28,$C10,$C12,E21) -> 6914.541491 | F29: =Reynoldszahl_Kanal(F28,$C10,$C12,F21) -> 7164.419546 | G29: =Reynoldszahl_Kanal(G28,$C10,$C12,G21) -> 7420.389933
A30: Prandtlzahl Wasser | B30: - | C30: =C22*C21*C19/C20 -> 7.691001742 | D30: =D22*D21*D19/D20 -> 7.383541672 | E30: 7.091871583 | F30: =F22*F21*F19/F20 -> 6.815112879 | G30: 6.552438416
A31: Nusseltzahl | B31: - | C31: =Nu_Rohrstroemung(C29,C30) -> 46.2692755 | D31: =Nu_Rohrstroemung(D29,D30) -> 47.92153042 | E31: =Nu_Rohrstroemung(E29,E30) -> 49.57374623 | F31: =Nu_Rohrstroemung(F29,F30) -> 51.22566963 | G31: =Nu_Rohrstroemung(G29,G30) -> 52.87702201
A32: Wärmeübergang zum Fluid | B32: W/Km2 | C32: =alpha_Rohrstroemung(C31,C20,$C10,$C12) -> 2755.497125 | D32: =alpha_Rohrstroemung(D31,D20,$C10,$C12) -> 2865.828069 | E32: =alpha_Rohrstroemung(E31,E20,$C10,$C12) -> 2976.78128 | F32: =alpha_Rohrstroemung(F31,F20,$C10,$C12) -> 3088.322661 | G32: =alpha_Rohrstroemung(G31,G20,$C10,$C12) -> 3200.416477
A33: Temperatur an der Basis | B33: °C | C33: =Temperatur_Basis(C24,$C16,$C10,C32,$C11,$C18,$C9,C25) -> 18.47245064 | D33: =Temperatur_Basis(D24,$C16,$C10,D32,$C11,$C18,$C9,D25) -> 19.87631408 | E33: =Temperatur_Basis(E24,$C16,$C10,E32,$C11,$C18,$C9,E25) -> 21.28362616 | F33: =Temperatur_Basis(F24,$C16,$C10,F32,$C11,$C18,$C9,F25) -> 22.69390112 | G33: =Temperatur_Basis(G24,$C16,$C10,G32,$C11,$C18,$C9,G25) -> 24.10762033
A34: Innerer Wärmedurchgangskoeffizient U | B34: W/Km2 | C34: =1/(C37/C25) -> 62.46265188 | D34: =1/(D37/D25) -> 62.71381662 | E34: =1/(E37/E25) -> 62.949444 | F34: 63.17085688 | G34: 63.37923111 | M34: x | N34: ϑ_m | O34: ϑ_b | P34: ϑ_P | Q34: ϑ_i
A35: Temperaturzuschlag zur Berücksichtigung der inhomogenität | B35: K | C35: 0.65 | D35: 0.5241118995 | E35: 0.399602504 | F35: 0.2761767173 | G35: 0.1548689963 | H35: proportional zur Leistung | M35: m | N35: °C | O35: °C | P35: °C | Q35: °C
A36: Mittlere Plattentemperatur (basierend auf Fluidtemp.) | B36: °C | C36: =Temperatur_Mittelwert(C24,C25,$C10,$C16,$C11,C32,$C18,$C9,C35,C25) -> 19.43535125 | D36: =Temperatur_Mittelwert(D24,D25,$C10,$C16,$C11,D32,$C18,$C9,D35,D25) -> 20.65272587 | E36: =Temperatur_Mittelwert(E24,E25,$C10,$C16,$C11,E32,$C18,$C9,E35,E25) -> 21.87559154 | F36: =Temperatur_Mittelwert(F24,F25,$C10,$C16,$C11,F32,$C18,$C9,F35,F25) -> 23.10302532 | G36: =Temperatur_Mittelwert(G24,G25,$C10,$C16,$C11,G32,$C18,$C9,G35,G25) -> 24.33704103 | M36: 0 | N36: =C24 -> 18 | O36: =C33 -> 18.47245064 | P36: =C36 -> 19.43535125 | Q36: =K11 -> 26
A37: Temperaturdifferenz | B37: K | C37: =C36-C24 -> 1.435351248 | D37: =D36-D24 -> 1.152725874 | E37: 0.8755915372 | F37: =F36-F24 -> 0.6030253206 | G37: 0.3370410279 | M37: =M26 -> 0.1441666667 | N37: =N36 -> 18 | O37: =O36 -> 18.47245064 | P37: =P36 -> 19.43535125 | Q37: =Q36 -> 26

Sheet Konvektion+Strahlung
A1: Korrelationen für den konvektiven Wärmeübergang und Strahlungsaustausch | F1: Institut Nachhaltigkeit und Energie am Bau | X1: Vergleich Datenblatt - Prototyp
A2: Parameter des empirischen Modells nach DIN EN 14240 | E2: Legende: | F2: Eingabe | K2: Daten übernehmen | X2: Datenblatt | Z2: Prototyp opt.
A3: Leistungsfaktor k | B3: W/Kmn | C3: 10.42489746 | F3: Formeln empirisches Modell | W3: W/Kmn | X3: =Kühlsegel!C3 -> 11.447 | Z3: =Prototyp!C3 -> 10.42489746
A4: Exponent n | B4: - | C4: 1.034665818 | D4: Raumluft | F4: Formeln analytisches Modell | I4: Beahr&Stephan | W4: - | X4: =Kühlsegel!C4 -> 1.068 | Z4: =Prototyp!C4 -> 1.034665818
A5: Kühlsegelfläche | B5: m2 | C5: 2.045725 | D5: °C | E5: K | F5: Formeln analytisches Modell | I5: Lloyd+Lewandowski
A6: Referenz- und Raumlufttemperatur | B6: °C | C6: 26 | D6: =C6+E6 -> 26 | E6: 0 | F6: Übertrag aus "Kühlsegel" | X6: 26
A7: Mittlere Fluidtemperatur | C7: 18 | D7: 19 | E7: 20 | F7: 21 | G7: 22 | H7: 23 | I7: 24 | J7: 25 | K7: k | L7: n | X7: 18 | Y7: 19 | Z7: 20 | AA7: 21 | AB7: 22 | AC7: 23 | AD7: 24 | AE7: 25
A8: Differenz Fluid-Referenztemperatur | B8: kg/m3 | C8: =$C6-C7 -> 8 | D8: =$C6-D7 -> 7 | E8: 6 | F8: 5 | G8: 4 | H8: 3 | I8: 2 | J8: 1 | K8: W/Kmn | L8: - | X8: =$C6-X7 -> 8 | Y8: =$C6-Y7 -> 7 | Z8: 6 | AA8: 5 | AB8: 4 | AC8: 3 | AD8: 2 | AE8: 1
A9: Gesamtleistung | B9: W/m2 | C9: =qs_Kuehlsegel($C3,$C4,$C6,C7) -> 89.63304124 | D9: =qs_Kuehlsegel($C3,$C4,$C6,D7) -> 78.06670458 | E9: =qs_Kuehlsegel($C3,$C4,$C6,E7) -> 66.55769789 | F9: =qs_Kuehlsegel($C3,$C4,$C6,F7) -> 55.11529844 | G9: =qs_Kuehlsegel($C3,$C4,$C6,G7) -> 43.75248106 | H9: =qs_Kuehlsegel($C3,$C4,$C6,H7) -> 32.48873826 | I9: =qs_Kuehlsegel($C3,$C4,$C6,I7) -> 21.35685203 | J9: =qs_Kuehlsegel($C3,$C4,$C6,J7) -> 10.42489746 | K9: =EXP(M9) -> 10.42489746 | L9: =LINEST(LN(C9:J9),LN(C$8:J$8)) -> 1.034665818 | M9: 2.344196931 | X9: =qs_Kuehlsegel($X3,$X4,$X6,X7) -> 105.4852627 | Y9: =qs_Kuehlsegel($X3,$X4,$X6,Y7) -> 91.46530556 | Z9: =qs_Kuehlsegel($X3,$X4,$X6,Z7) -> 77.58132958 | AA9: =qs_Kuehlsegel($X3,$X4,$X6,AA7) -> 63.85452042 | AB9: =qs_Kuehlsegel($X3,$X4,$X6,AB7) -> 50.31433691 | AC9: =qs_Kuehlsegel($X3,$X4,$X6,AC7) -> 37.00472515 | AD9: =qs_Kuehlsegel($X3,$X4,$X6,AD7) -> 23.99892111 | AE9: =qs_Kuehlsegel($X3,$X4,$X6,AE7) -> 11.447
C10: =C8+$E6*C9/$C9 -> 8 | D10: =D8+$E6*D9/$C9 -> 7 | E10: 6 | F10: 5 | G10: 4 | H10: 3 | I10: 2 | J10: 1 | X10: =qs_Kuehlsegel($Z3,$Z4,$X6,X7) -> 89.63304124 | Y10: =qs_Kuehlsegel($Z3,$Z4,$X6,Y7) -> 78.06670458 | Z10: =qs_Kuehlsegel($Z3,$Z4,$X6,Z7) -> 66.55769789 | AA10: =qs_Kuehlsegel($Z3,$Z4,$X6,AA7) -> 55.11529844 | AB10: =qs_Kuehlsegel($Z3,$Z4,$X6,AB7) -> 43.75248106 | AC10: =qs_Kuehlsegel($Z3,$Z4,$X6,AC7) -> 32.48873826 | AD10: =qs_Kuehlsegel($Z3,$Z4,$X6,AD7) -> 21.35685203 | AE10: =qs_Kuehlsegel($Z3,$Z4,$X6,AE7) -> 10.42489746
A11: Temperatur an der Basis | B11: °C | C11: =Temperatur_Basis(C7,$C69,$C63,$C84,$C64,$C71,$C62,C9) -> 18.4730157 | D11: =Temperatur_Basis(D7,$C69,$C63,$C84,$C64,$C71,$C62,D9) -> 19.41197728 | E11: =Temperatur_Basis(E7,$C69,$C63,$C84,$C64,$C71,$C62,E9) -> 20.35124141 | F11: =Temperatur_Basis(F7,$C69,$C63,$C84,$C64,$C71,$C62,F9) -> 21.29085704 | G11: =Temperatur_Basis(G7,$C69,$C63,$C84,$C64,$C71,$C62,G9) -> 22.23089265 | H11: =Temperatur_Basis(H7,$C69,$C63,$C84,$C64,$C71,$C62,H9) -> 23.1714511 | I11: =Temperatur_Basis(I7,$C69,$C63,$C84,$C64,$C71,$C62,I9) -> 24.11270538 | J11: =Temperatur_Basis(J7,$C69,$C63,$C84,$C64,$C71,$C62,J9) -> 25.05501476
A12: Mittlere Oberflächentemperatur des Kühlsegels | B12: °C | C12: =Temperatur_Mittelwert(C7,C9,$C63,$C69,$C64,C84,$C71,$C62,$C86,$C9) -> 19.43583672 | D12: =Temperatur_Mittelwert(D7,D9,$C63,$C69,$C64,D84,$C71,$C62,$C86,$C9) -> 20.24715598 | E12: =Temperatur_Mittelwert(E7,E9,$C63,$C69,$C64,E84,$C71,$C62,$C86,$C9) -> 21.06053255 | F12: =Temperatur_Mittelwert(F7,F9,$C63,$C69,$C64,F84,$C71,$C62,$C86,$C9) -> 21.8760283 | G12: =Temperatur_Mittelwert(G7,G9,$C63,$C69,$C64,G84,$C71,$C62,$C86,$C9) -> 22.69376978 | H12: =Temperatur_Mittelwert(H7,H9,$C63,$C69,$C64,H84,$C71,$C62,$C86,$C9) -> 23.51399149 | I12: =Temperatur_Mittelwert(I7,I9,$C63,$C69,$C64,I84,$C71,$C62,$C86,$C9) -> 24.33714119 | J12: =Temperatur_Mittelwert(J7,J9,$C63,$C69,$C64,J84,$C71,$C62,$C86,$C9) -> 25.16422399
A13: Differenz Oberflächen-Lufttemperatur | B13: K | C13: =$D6-C12 -> 6.56416328 | D13: =$D6-D12 -> 5.75284402 | E13: 4.939467453 | F13: 4.123971698 | G13: 3.30623022 | H13: 2.486008511 | I13: 1.662858808 | J13: 0.8357760064
A14: Mittlere Lufttemperatur | B14: °C | C14: =($D6+C12)/2 -> 22.71791836 | D14: =($D6+D12)/2 -> 23.12357799 | E14: 23.53026627 | F14: 23.93801415 | G14: 24.34688489 | H14: 24.75699574 | I14: 25.1685706 | J14: 25.582112
A15: Dichte der Luft | B15: kg/m3 | C15: =rho_Luft(C14) -> 1.180796741 | D15: =rho_Luft(D14) -> 1.179326245 | E15: =rho_Luft(E14) -> 1.177854002 | F15: =rho_Luft(F14) -> 1.176379916 | G15: =rho_Luft(G14) -> 1.174903774 | H15: =rho_Luft(H14) -> 1.17342517 | I15: =rho_Luft(I14) -> 1.171943316 | J15: =rho_Luft(J14) -> 1.17045643
A16: Spezifische Wärmekapazität Luft | B16: J/kgK | C16: =cp_Luft(C14) -> 1004.871792 | D16: =cp_Luft(D14) -> 1004.912358 | E16: =cp_Luft(E14) -> 1004.953027 | F16: =cp_Luft(F14) -> 1004.993801 | G16: =cp_Luft(G14) -> 1005.034688 | H16: =cp_Luft(H14) -> 1005.0757 | I16: =cp_Luft(I14) -> 1005.116857 | J16: =cp_Luft(J14) -> 1005.158211
A17: Kinematische Viskosität Luft | B17: m2/s | C17: =ny_Luft(C14) -> 1.56163422e-05 | D17: =ny_Luft(D14) -> 1.565470714e-05 | E17: =ny_Luft(E14) -> 1.569320275e-05 | F17: =ny_Luft(F14) -> 1.573183219e-05 | G17: =ny_Luft(G14) -> 1.577060175e-05 | H17: =ny_Luft(H14) -> 1.580952282e-05 | I17: =ny_Luft(I14) -> 1.584861699e-05 | J17: =ny_Luft(J14) -> 1.588793243e-05
A18: Wärmeleitfähigkeit Luft | B18: W/Km | C18: =lamda_Luft(C14) -> 0.02588308897 | D18: =lamda_Luft(D14) -> 0.025912915 | E18: =lamda_Luft(E14) -> 0.02594280674 | F18: =lamda_Luft(F14) -> 0.0259727664 | G18: =lamda_Luft(G14) -> 0.02600279855 | H18: =lamda_Luft(H14) -> 0.02603291172 | I18: =lamda_Luft(I14) -> 0.02606312223 | J18: =lamda_Luft(J14) -> 0.02609346685
A19: Prandtlzahl Luft | B19: - | C19: =Prandtlzahl(C17,C18,C15,C16) -> 0.7158944788 | D19: =Prandtlzahl(D17,D18,D15,D16) -> 0.7159634098 | E19: =Prandtlzahl(E17,E18,E15,E16) -> 0.7160310403 | F19: =Prandtlzahl(F17,F18,F15,F16) -> 0.7160973724 | G19: =Prandtlzahl(G17,G18,G15,G16) -> 0.7161624125 | H19: =Prandtlzahl(H17,H18,H15,H16) -> 0.7162261749 | I19: =Prandtlzahl(I17,I18,I15,I16) -> 0.716288688 | J19: =Prandtlzahl(J17,J18,J15,J16) -> 0.7163500181
A20: Expansionskoeffizient | B20: 1/K | C20: =1/(C14+273.15) -> 0.003379886557 | D20: =1/(D14+273.15) -> 0.003375258796 | E20: 0.003370632002 | F20: 0.003366005872 | G20: 0.003361379735 | H20: 0.003356752323 | I20: 0.003352121184 | J20: 0.003347480769
A21: Dimensionen des Kühlsegels | E21: Emissivitäten
A22: Anzahl Module ohne Abstand in Längsrichtung | B22: m | C22: 1 | E22: Begrenzungsflächen des Raumes | H22: - | I22: 0.93
A23: Anzahl Module ohne Abstand in Querrichtung | B23: m | C23: 1 | E23: Kühlsegel zum Raum | H23: - | I23: =Prototyp!K18 -> 0.93
A24: Anzahl Module im Prüfraum | B24: - | C24: 4 | E24: Kühlsegel zur Decke | H24: - | I24: =I23 -> 0.93
A25: Gesamte Projektionsfläche | B25: m2 | C25: =C24*C60*C61 -> 8.1829
A26: Charakteristische Länge | B26: m | C26: =Char_Länge_horiz_Platte(C61,C22,C60,C23) -> 0.3166756966
A27: Strahlung
A28: Strahlungsanteil Raum | B28: W/m2 | C28: =Strahlung_isothermer_Raum(C12,$D6,$I23,$I22,$C25,Kühlsegel!$G9)/(2*$C25) -> 70.70328913 | D28: =Strahlung_isothermer_Raum(D12,$D6,$I23,$I22,$C25,Kühlsegel!$G9)/(2*$C25) -> 62.21792656 | E28: =Strahlung_isothermer_Raum(E12,$D6,$I23,$I22,$C25,Kühlsegel!$G9)/(2*$C25) -> 53.64008989 | F28: =Strahlung_isothermer_Raum(F12,$D6,$I23,$I22,$C25,Kühlsegel!$G9)/(2*$C25) -> 44.96818329 | G28: =Strahlung_isothermer_Raum(G12,$D6,$I23,$I22,$C25,Kühlsegel!$G9)/(2*$C25) -> 36.19988423 | H28: =Strahlung_isothermer_Raum(H12,$D6,$I23,$I22,$C25,Kühlsegel!$G9)/(2*$C25) -> 27.33164369 | I28: =Strahlung_isothermer_Raum(I12,$D6,$I23,$I22,$C25,Kühlsegel!$G9)/(2*$C25) -> 18.35748364 | J28: =Strahlung_isothermer_Raum(J12,$D6,$I23,$I22,$C25,Kühlsegel!$G9)/(2*$C25) -> 9.265099128 | K28: =EXP(M28) -> 9.306122618 | L28: =LINEST(LN(C28:J28),LN(C$8:J$8)) -> 0.9774434738 | M28: 2.23067253
A29: Rad. Oben | B29: W/m2 | C29: =Strahlung_infinit_parallele_Platten($D6,C12,$I22,$I24) -> 33.51576532 | D29: =Strahlung_infinit_parallele_Platten($D6,D12,$I22,$I24) -> 29.49341468 | E29: =Strahlung_infinit_parallele_Platten($D6,E12,$I22,$I24) -> 25.42722816 | F29: =Strahlung_infinit_parallele_Platten($D6,F12,$I22,$I24) -> 21.3164493 | G29: =Strahlung_infinit_parallele_Platten($D6,G12,$I22,$I24) -> 17.15997713 | H29: =Strahlung_infinit_parallele_Platten($D6,H12,$I22,$I24) -> 12.9561293 | I29: =Strahlung_infinit_parallele_Platten($D6,I12,$I22,$I24) -> 8.702072015 | J29: =Strahlung_infinit_parallele_Platten($D6,J12,$I22,$I24) -> 4.391972309 | K29: =EXP(M29) -> 4.41141884 | L29: =LINEST(LN(C29:J29),LN(C$8:J$8)) -> 0.9774434738 | M29: 1.48419637
A30: Rad. Unten | B30: W/m2 | C30: =C28-C29 -> 37.18752381 | D30: =D28-D29 -> 32.72451188 | E30: 28.21286173 | F30: 23.65173399 | G30: =G28-G29 -> 19.0399071 | H30: 14.37551439 | I30: 9.655411629 | J30: 4.873126818 | K30: =EXP(M30) -> 4.894703778 | L30: =LINEST(LN(C30:J30),LN(C$8:J$8)) -> 0.9774434738 | M30: 1.588153759
A31: Konvektion Oberseite des Kühlsegels
A32: Rayleighzahl | B32: - | C32: =Ra_Luft($C6,C12,$C26) -> 20290827.92 | D32: =Ra_Luft($C6,D12,$C26) -> 17673333.75 | E32: =Ra_Luft($C6,E12,$C26) -> 15080925.55 | F32: =Ra_Luft($C6,F12,$C26) -> 12513299.65 | G32: =Ra_Luft($C6,G12,$C26) -> 9969961.296 | H32: =Ra_Luft($C6,H12,$C26) -> 7450104.487 | I32: =Ra_Luft($C6,I12,$C26) -> 4952314.391 | J32: =Ra_Luft($C6,J12,$C26) -> 2473581.629
A33: Nu Lewandowski | B33: - | C33: =Nu_O_gekühlt_Lewandowski(C32) -> 15.04746345 | D33: =Nu_O_gekühlt_Lewandowski(D32) -> 14.63750443 | E33: =Nu_O_gekühlt_Lewandowski(E32) -> 14.18041506 | F33: =Nu_O_gekühlt_Lewandowski(F32) -> 13.66084968 | G33: =Nu_O_gekühlt_Lewandowski(G32) -> 13.0539528 | H33: =Nu_O_gekühlt_Lewandowski(H32) -> 12.3150397 | I33: =Nu_O_gekühlt_Lewandowski(I32) -> 11.34919309 | J33: =Nu_O_gekühlt_Lewandowski(J32) -> 9.877990246
A34: alpha_Lewandowski | B34: W/Km2 | C34: =C33*C18/$C26 -> 1.229885462 | D34: 1.197756607 | E34: 1.161692455 | F34: 1.120420864 | G34: 1.071883029 | H34: 1.012380631 | I34: 0.934064123 | J34: 0.8139273517
A35: Anteil Lewandowski | B35: W/Km2 | C35: =C34*C13 -> 8.073168987 | D35: =D34*D13 -> 6.890506936 | E35: 5.738142072 | F35: 4.620583934 | G35: 3.543892065 | H35: 2.516786864 | I35: 1.553216754 | J35: 0.6802609515
A36: Hilfsfunktion phi_2 ^1/5 (Baehr) | B36: - | C36: =phi_2(C19) ^(1/5) -> 0.8098377368 | D36: =phi_2(D19) ^(1/5) -> 0.8098447146 | E36: =phi_2(E19) ^(1/5) -> 0.8098515599 | F36: =phi_2(F19) ^(1/5) -> 0.809858273 | G36: =phi_2(G19) ^(1/5) -> 0.8098648546 | H36: =phi_2(H19) ^(1/5) -> 0.8098713062 | I36: =phi_2(I19) ^(1/5) -> 0.8098776308 | J36: =phi_2(J19) ^(1/5) -> 0.809883835
A37: Nu_Baehr | B37: - | C37: =Nu_O_gekühlt_Baehr(C32,C19) -> 14.06077356 | D37: =Nu_O_gekühlt_Baehr(D32,D19) -> 13.67781415 | E37: =Nu_O_gekühlt_Baehr(E32,E19) -> 13.2508053 | F37: =Nu_O_gekühlt_Baehr(F32,F19) -> 12.7654063 | G37: =Nu_O_gekühlt_Baehr(G32,G19) -> 12.19838952 | H37: =Nu_O_gekühlt_Baehr(H32,H19) -> 11.50799688 | I37: =Nu_O_gekühlt_Baehr(I32,I19) -> 10.60552802 | J37: =Nu_O_gekühlt_Baehr(J32,J19) -> 9.230797641
A38: alpha_Baehr | B38: W/Km2 | C38: =C37*C18/$C26 -> 1.149239606 | D38: 1.119227144 | E38: 1.085536669 | F38: 1.046979353 | G38: 1.001631224 | H38: 0.9460361812 | I38: 0.8728588142 | J38: 0.7605999288
A39: Anteil Baehr&Stephan | B39: W/Km2 | C39: =C38*C13 -> 7.543796424 | D39: =D38*D13 -> 6.43873918 | E39: 5.361973047 | F39: 4.317713221 | G39: 3.311623421 | H39: 2.351853998 | I39: 1.451440967 | J39: 0.635691171
A40: Konvektion Unterseite des Kühlsegels
A41: Nu Lloyd et al. | B41: - | C41: =Nu_U_gekühlt_O_geheizt_Lloyd(C32) -> 40.9126724 | D41: =Nu_U_gekühlt_O_geheizt_Lloyd(D32) -> 39.07185993 | E41: =Nu_U_gekühlt_O_geheizt_Lloyd(E32) -> 37.05958836 | F41: =Nu_U_gekühlt_O_geheizt_Lloyd(F32) -> 34.82425818 | G41: =Nu_U_gekühlt_O_geheizt_Lloyd(G32) -> 30.34360162 | H41: =Nu_U_gekühlt_O_geheizt_Lloyd(H32) -> 28.21203089 | I41: =Nu_U_gekühlt_O_geheizt_Lloyd(I32) -> 25.47392182 | J41: =Nu_U_gekühlt_O_geheizt_Lloyd(J32) -> 21.41535714
A42: alpha_Lloyd et al. | B42: W/Km2 | C42: =C41*C18/$C26 -> 3.343945718 | D42: 3.197169205 | E42: 3.036007338 | F42: 2.856178522 | G42: 2.491566511 | H42: 2.319222212 | I42: 2.096561073 | J42: 1.76458414
A43: Anteil Konvektion Lloyd et al. | B43: W/m2 | C43: =(C42)*($C6-C12) -> 21.95020569 | D43: 18.39281574 | E43: 14.99625943 | F43: 11.77879939 | G43: 8.237692494 | H43: 5.765606158 | I43: 3.486285047 | J43: 1.474797086
A44: Hilfsfunktion phi_1 ^1/5 (Baehr) | B44: - | C44: =phi_1(C19) ^(1/5) -> 0.8345494601 | D44: =phi_1(D19) ^(1/5) -> 0.8345557576 | E44: =phi_1(E19) ^(1/5) -> 0.8345619355 | F44: =phi_1(F19) ^(1/5) -> 0.8345679942 | G44: =phi_1(G19) ^(1/5) -> 0.8345739341 | H44: =phi_1(H19) ^(1/5) -> 0.8345797567 | I44: =phi_1(I19) ^(1/5) -> 0.8345854646 | J44: =phi_1(J19) ^(1/5) -> 0.8345910638
A45: Nu_Baehr&Stephan | B45: - | C45: =Nu_U_gekühlt_O_geheizt_Baehr(C32,C19) -> 30.26527673 | D45: =Nu_U_gekühlt_O_geheizt_Baehr(D32,D19) -> 28.90389349 | E45: =Nu_U_gekühlt_O_geheizt_Baehr(E32,E19) -> 27.41562885 | F45: =Nu_U_gekühlt_O_geheizt_Baehr(F32,F19) -> 25.7623069 | G45: =Nu_U_gekühlt_O_geheizt_Baehr(G32,G19) -> 23.8834527 | H45: =Nu_U_gekühlt_O_geheizt_Baehr(H32,H19) -> 21.67330408 | I45: =Nu_U_gekühlt_O_geheizt_Baehr(I32,I19) -> 18.91524725 | J45: =Nu_U_gekühlt_O_geheizt_Baehr(J32,J19) -> 15.00800245
A46: alpha_Baehr&Stephan | B46: W/Km2 | C46: =C45*C18/$C26 -> 2.473694251 | D46: 2.365145614 | E46: 2.245951832 | F46: 2.112945156 | G46: 1.961112318 | H46: 1.781694073 | I46: 1.556767401 | J46: 1.236630466
A47: Anteil Baehr&Stephan | B47: W/m2 | C47: =C46*C13 -> 16.23773297 | D47: =D46*D13 -> 13.6063138 | E47: 11.09380598 | F47: 8.713726024 | G47: 6.483888811 | H47: 4.42930663 | I47: 2.588684385 | J47: 1.033546073
A48: Konvektion
A49: Konvektion | B49: W/m2 | C49: =C9-C28 -> 18.92975211 | D49: 15.84877803 | E49: 12.917608 | F49: 10.14711515 | G49: 7.552596824 | H49: 5.157094566 | I49: 2.999368385 | J49: 1.159798331 | K49: =EXP(M49) -> 1.173312441 | L49: =LINEST(LN(C49:J49),LN(C$8:J$8)) -> 1.339972246 | M49: 0.1598308952
A50: Leistungsdichte - Strahlung Oberseite | B50: W/m2 | C50: =C9-C29 -> 56.11727592 | D50: 48.57328991 | E50: 41.13046973 | F50: 33.79884914 | G50: 26.59250392 | H50: 19.53260896 | I50: 12.65478001 | J50: 6.032925149
A51: Ln | B51: W/m2 | D51: =$K6*D8^$J6 -> 0 | E51: 0 | F51: 0 | G51: 0 | H51: 0 | I51: 0 | J51: 0
A52: Strahlung + Baehr&Stephan | B52: W/m2 | C52: =C28+C47+C39 -> 94.48481853 | D52: =D28+D47+D39 -> 82.26297954 | E52: 70.09586891 | F52: 57.99962253 | G52: 45.99539646 | H52: 34.11280432 | I52: 22.397609 | J52: 10.93433637
A53: Baehr&Stephan | B53: W/m2 | C53: =C39+C47 -> 23.78152939 | D53: =D39+D47 -> 20.04505298 | E53: 16.45577902 | F53: 13.03143925 | G53: 9.795512232 | H53: 6.781160628 | I53: 4.040125352 | J53: 1.669237244
A54: Strahlung + Lloyd+Lewandowski | B54: W/m2 | C54: =C28+C43+C35 -> 100.7266638 | D54: 87.50124923 | E54: 74.37449139 | F54: 61.36756661 | G54: 47.98146879 | H54: 35.61403671 | I54: 23.39698544 | J54: 11.42015716
A55: Lloyd, Lewandowski | C55: =C43+C35 -> 30.02337468 | D55: =D43+D35 -> 25.28332268 | E55: =E43+E35 -> 20.73440151 | F55: 16.39938332 | G55: 11.78158456 | H55: 8.282393022 | I55: 5.039501801 | J55: 2.155058037
A56: Rel. Differenz Emprisch - Baehr+Stephan | B56: - | C56: =(C49-C53)/C53 -> -0.2040145193 | D56: =(D49-D53)/D49 -> -0.2647696213 | E56: =(E49-E53)/E49 -> -0.2739029564 | F56: -0.2842506522 | G56: -0.2969727448 | H56: -0.3149188057 | I56: -0.3469920442 | J56: =(J49-J53)/J49 -> -0.4392478411
A57: Rel. Differenz Emprisch - Lloyd+Lewandowski | B57: - | C57: =(C49-C55)/C55 -> -0.3694995213 | D57: =(D49-D55)/D55 -> -0.3731528791 | E57: -0.3769963412 | F57: -0.3812502002 | G57: -0.3589489779 | H57: -0.3773424477 | I57: -0.4048283931 | J57: -0.4618250132
A59: Abmessungen der Platte
A60: Breite B_P | B60: m | C60: 0.865
A61: Länge (Richtung der Strömungskanäle) L_P | B61: m | C61: 2.365
A62: Dicke s | B62: m | C62: 0.002
A63: Durchmesser eines kreisförmigen Strömungskanals d | B63: m | C63: 0.01
A64: Wärmeleitvermögen der Verbindung Rohr-Platte | B64: W/Km | C64: 40
A65: Höhe eines volldurchströmten Plattenspaltes | B65: m | C65: 0.0035
A66: Anzahl Strömungskanäle pro Plattenbreite n | B66: - | C66: 6
A67: Anzahl seriell geschaltete Strömungskanäle m | B67: - | C67: 6
A68: Querschnitt total | B68: m2 | C68: =Querschnitt(C63,C60,C65,C66,C67) -> 7.85375e-05
A69: Halbe Plattenbreite b zwischen zwei Strömungskanälen | B69: m | C69: =(C60-C66*C63)/(C66*2) -> 0.06708333333
A70: Stoffdaten
A71: Wärmeleitfähigkeit des Plattenmaterials | B71: W/Km | C71: 200
A73: Dichte von Wasser | B73: kg/m3 | C73: =rho_sat_Wasser(C7) -> 998.3906052 | D73: =rho_sat_Wasser(D7) -> 998.2033484 | E73: =rho_sat_Wasser(E7) -> 998.0064424 | F73: =rho_sat_Wasser(F7) -> 997.7999886 | G73: =rho_sat_Wasser(G7) -> 997.5840876 | H73: =rho_sat_Wasser(H7) -> 997.358839 | I73: =rho_sat_Wasser(I7) -> 997.1243414 | J73: =rho_sat_Wasser(J7) -> 996.8806926
A74: Wärmeleitfähigkeit von Wasser | B74: W/Km | C74: =lamda_sat_Wasser(C7) -> 0.5955349625 | D74: =lamda_sat_Wasser(D7) -> 0.5971995452 | E74: =lamda_sat_Wasser(E7) -> 0.5988463224 | F74: =lamda_sat_Wasser(F7) -> 0.6004753537 | G74: =lamda_sat_Wasser(G7) -> 0.6020866984 | H74: =lamda_sat_Wasser(H7) -> 0.6036804161 | I74: =lamda_sat_Wasser(I7) -> 0.6052565661 | J74: =lamda_sat_Wasser(J7) -> 0.6068152078
A75: Kinemat. Viskosität von Wasser | B75: m2/s | C75: =ny_sat_Wasser(C7) -> 1.094992562e-06 | D75: =ny_sat_Wasser(D7) -> 1.068984838e-06 | E75: =ny_sat_Wasser(E7) -> 1.043782311e-06 | F75: =ny_sat_Wasser(F7) -> 1.019358767e-06 | G75: =ny_sat_Wasser(G7) -> 9.956888542e-07 | H75: =ny_sat_Wasser(H7) -> 9.72748052e-07 | I75: =ny_sat_Wasser(I7) -> 9.505126437e-07 | J75: =ny_sat_Wasser(J7) -> 9.289596911e-07
A76: Wärmekapazität von Wasser | B76: J/kgK | C76: =cp_sat_Wasser(C7) -> 4189.657466 | D76: =cp_sat_Wasser(D7) -> 4188.668272 | E76: =cp_sat_Wasser(E7) -> 4187.726565 | F76: =cp_sat_Wasser(F7) -> 4186.831593 | G76: =cp_sat_Wasser(G7) -> 4185.982616 | H76: =cp_sat_Wasser(H7) -> 4185.178901 | I76: =cp_sat_Wasser(I7) -> 4184.419728 | J76: =cp_sat_Wasser(J7) -> 4183.704387
A77: Betriebsbedingungen
A78: Flächenbezogener Massenstrom Wasser | B78: kg/sm2 | C78: =Kühlsegel!C26 -> 0.02691249095
A79: Volumenstrom | B79: m3/s | C79: =Volumenstrom($C78*$C60*$C61,C7) -> 5.514430451e-05 | D79: =Volumenstrom($C78*$C60*$C61,D7) -> 5.515464924e-05 | E79: =Volumenstrom($C78*$C60*$C61,E7) -> 5.516553122e-05 | F79: =Volumenstrom($C78*$C60*$C61,F7) -> 5.517694546e-05 | G79: =Volumenstrom($C78*$C60*$C61,G7) -> 5.518888707e-05 | H79: =Volumenstrom($C78*$C60*$C61,H7) -> 5.520135121e-05 | I79: =Volumenstrom($C78*$C60*$C61,I7) -> 5.521433313e-05 | J79: =Volumenstrom($C78*$C60*$C61,J7) -> 5.522782813e-05
A80: Fliessgeschwindigkeit | B80: m/s | C80: =Fliessgeschwindigkeit(C79,$C68) -> 0.7021397996 | D80: =Fliessgeschwindigkeit(D79,$C68) -> 0.7022715167 | E80: =Fliessgeschwindigkeit(E79,$C68) -> 0.7024100744 | F80: =Fliessgeschwindigkeit(F79,$C68) -> 0.7025554094 | G80: =Fliessgeschwindigkeit(G79,$C68) -> 0.7027074591 | H80: =Fliessgeschwindigkeit(H79,$C68) -> 0.7028661622 | I80: =Fliessgeschwindigkeit(I79,$C68) -> 0.7030314579 | J80: =Fliessgeschwindigkeit(J79,$C68) -> 0.7032032867
A81: Reynoldszahl | B81: - | C81: =Reynoldszahl_Kanal(C80,$C63,$C65,C75) -> 6412.279167 | D81: =Reynoldszahl_Kanal(D80,$C63,$C65,D75) -> 6569.518029 | E81: =Reynoldszahl_Kanal(E80,$C63,$C65,E75) -> 6729.469041 | F81: =Reynoldszahl_Kanal(F80,$C63,$C65,F75) -> 6892.130938 | G81: =Reynoldszahl_Kanal(G80,$C63,$C65,G75) -> 7057.500505 | H81: =Reynoldszahl_Kanal(H80,$C63,$C65,H75) -> 7225.572549 | I81: =Reynoldszahl_Kanal(I80,$C63,$C65,I75) -> 7396.339887 | J81: =Reynoldszahl_Kanal(J80,$C63,$C65,J75) -> 7569.793323
A82: Prandtlzahl Wasser | B82: - | C82: =C76*C75*C73/C74 -> 7.691001742 | D82: =D76*D75*D73/D74 -> 7.484228986 | E82: 7.284608349 | F82: 7.091871583 | G82: 6.905761041 | H82: 6.726029235 | I82: 6.552438416 | J82: 6.384760169
A83: Nusseltzahl | B83: - | C83: =Nu_Rohrstroemung(C81,C82) -> 46.05785718 | D83: =Nu_Rohrstroemung(D81,D82) -> 47.1566483 | E83: =Nu_Rohrstroemung(E81,E82) -> 48.25544124 | F83: =Nu_Rohrstroemung(F81,F82) -> 49.35416535 | G83: =Nu_Rohrstroemung(G81,G82) -> 50.4527448 | H83: =Nu_Rohrstroemung(H81,H82) -> 51.55109874 | I83: =Nu_Rohrstroemung(I81,I82) -> 52.64914159 | J83: =Nu_Rohrstroemung(J81,J82) -> 53.74678321
A84: Wärmeübergang zum Fluid | B84: W/Km2 | C84: =alpha_Rohrstroemung(C83,C74,$C63,$C65) -> 2742.906425 | D84: =alpha_Rohrstroemung(D83,D74,$C63,$C65) -> 2816.192892 | E84: =alpha_Rohrstroemung(E83,E74,$C63,$C65) -> 2889.759352 | F84: =alpha_Rohrstroemung(F83,F74,$C63,$C65) -> 2963.59599 | G84: =alpha_Rohrstroemung(G83,G74,$C63,$C65) -> 3037.692654 | H84: =alpha_Rohrstroemung(H83,H74,$C63,$C65) -> 3112.038874 | I84: =alpha_Rohrstroemung(I83,I74,$C63,$C65) -> 3186.623864 | J84: =alpha_Rohrstroemung(J83,J74,$C63,$C65) -> 3261.436542
A85: Innerer Wärmedurchgangskoeffizient U | B85: W/Km2 | C85: =1/(C87/C9) -> 62.42565047
A86: Mittlere Temperaturerhöhung durch Inhomogenität | B86: K | C86: 0.65
A87: Temperaturdifferenz | B87: K | C87: =C12-C7 -> 1.43583672 | D87: 1.24715598 | E87: 1.060532547 | F87: 0.8760283019 | G87: 0.6937697795 | H87: 0.5139914891 | I87: 0.337141192 | J87: 0.1642239936

Sheet Kollektorfeld
A1: Modell für die nächtliche Wärmeabgabe über ein Kollektorfeld
A2: Kollektorfeld | H2: Randbedingungen
A3: Kollektortyp | B3: - | C3: P3 | G3: T_l - T_a | I3: T_a | J3: EL | K3: T_sky | L3: w | M3: Qu
A4: Modulfläche | B4: m2 | C4: 2
A5: Anzahl Module | B5: - | C5: 22 | I5: °C | J5: W/m2 | K5: °C | L5: m/s | M5: W/m2
A6: Kollektorfläche | B6: m2 | C6: =C4*C5 -> 44
A7: Mittlere Fluidtemperatur T_l | B7: °C | C7: 0 | G7: =C7-I$7 -> -20 | I7: 20 | J7: 418.775 | K7: =T_Sky(J7) -> 19.99996599 | L7: 2 | M7: =qu_collector(C$3,C7,D$7,I$7,L$7,J$7) -> 578.1033181
C8: 1 | G8: =C8-I$7 -> -19 | M8: =qu_collector(C$3,C8,D$7,I$7,L$7,J$7) -> 551.9344774
C9: 2 | G9: -18 | M9: =qu_collector(C$3,C9,D$7,I$7,L$7,J$7) -> 525.4770926
C10: 3 | G10: -17 | M10: =qu_collector(C$3,C10,D$7,I$7,L$7,J$7) -> 498.7312473
C11: 4 | G11: -16 | M11: =qu_collector(C$3,C11,D$7,I$7,L$7,J$7) -> 471.6970257
C12: 5 | G12: -15 | M12: =qu_collector(C$3,C12,D$7,I$7,L$7,J$7) -> 444.374512
C13: 6 | G13: -14 | M13: =qu_collector(C$3,C13,D$7,I$7,L$7,J$7) -> 416.7637909
C14: 7 | G14: -13 | M14: =qu_collector(C$3,C14,D$7,I$7,L$7,J$7) -> 388.8649474
C15: 8 | G15: -12 | M15: =qu_collector(C$3,C15,D$7,I$7,L$7,J$7) -> 360.6780667
C16: 9 | G16: -11 | M16: =qu_collector(C$3,C16,D$7,I$7,L$7,J$7) -> 332.2032343
C17: 10 | G17: -10 | M17: =qu_collector(C$3,C17,D$7,I$7,L$7,J$7) -> 303.4405362
C18: 11 | G18: -9 | M18: =qu_collector(C$3,C18,D$7,I$7,L$7,J$7) -> 274.3900584
C19: 12 | G19: -8 | M19: =qu_collector(C$3,C19,D$7,I$7,L$7,J$7) -> 245.0518875
C20: 13 | G20: -7 | M20: =qu_collector(C$3,C20,D$7,I$7,L$7,J$7) -> 215.4261102
C21: 14 | G21: -6 | M21: =qu_collector(C$3,C21,D$7,I$7,L$7,J$7) -> 185.5128136
C22: 15 | G22: -5 | M22: =qu_collector(C$3,C22,D$7,I$7,L$7,J$7) -> 155.312085
C23: 16 | G23: -4 | M23: =qu_collector(C$3,C23,D$7,I$7,L$7,J$7) -> 124.8240123
C24: 17 | G24: =C24-I$7 -> -3 | M24: =qu_collector(C$3,C24,D$7,I$7,L$7,J$7) -> 94.04868333
C25: 18 | G25: -2 | M25: =qu_collector(C$3,C25,D$7,I$7,L$7,J$7) -> 62.98618643
C26: 19 | G26: -1 | M26: =qu_collector(C$3,C26,D$7,I$7,L$7,J$7) -> 31.63661019 | N26: =M26*C$6 -> 1392.010848 | O26: =N26*9 -> 12528.09764
C27: 20 | G27: 0 | M27: =qu_collector(C$3,C27,D$7,I$7,L$7,J$7) -> 4.353631739e-05
C28: 21 | G28: =C28-I$7 -> 1 | M28: =qu_collector(C$3,C28,D$7,I$7,L$7,J$7) -> -31.62342433
C29: 22 | G29: 2 | M29: =qu_collector(C$3,C29,D$7,I$7,L$7,J$7) -> -62.93370388 | N29: =M29*C$6 -> -2769.082971 | O29: =N29*9 -> -24921.74674
C30: 23 | G30: 3 | M30: =qu_collector(C$3,C30,D$7,I$7,L$7,J$7) -> -93.9307053 | N30: =M30*C$6 -> -4132.951033 | O30: =N30*9 -> -37196.5593
C31: 24 | G31: 4 | M31: =qu_collector(C$3,C31,D$7,I$7,L$7,J$7) -> -124.6143385 | N31: =M31*C$6 -> -5483.030892 | O31: =N31*9 -> -49347.27803
C32: 25 | G32: 5 | M32: =qu_collector(C$3,C32,D$7,I$7,L$7,J$7) -> -154.9845129
C33: 26 | G33: =C33-I$7 -> 6 | M33: =qu_collector(C$3,C33,D$7,I$7,L$7,J$7) -> -185.041138
C34: 27 | G34: =C34-I$7 -> 7 | M34: =qu_collector(C$3,C34,D$7,I$7,L$7,J$7) -> -214.7841225
C35: 28 | G35: 8 | M35: =qu_collector(C$3,C35,D$7,I$7,L$7,J$7) -> -244.2133753
C36: 29 | G36: 9 | M36: =qu_collector(C$3,C36,D$7,I$7,L$7,J$7) -> -273.3288045
C37: 30 | G37: 10 | M37: =qu_collector(C$3,C37,D$7,I$7,L$7,J$7) -> -302.1303184
C38: 31 | G38: 11 | M38: =qu_collector(C$3,C38,D$7,I$7,L$7,J$7) -> -330.6178245 | N38: =M38*C$6 -> -14547.18428

Sheet Raum
A1: Nächtliche Kühlung eines Raumes | C1: Institut Nachhaltigkeit und Energie am Bau | S1: Minimale Distanz zwischen zwei Rechenknoten
A2: Abmessungen des Raumes | T2: lambda | U2: alpha | V2: L | W2: Bi
A3: Länge | B3: L_R | C3: m | D3: 18 | E3: Volumen | F3: V | G3: m3 | H3: =D3*D4*D5 -> 432 | T3: W/Km | U3: W/Km2 | V3: mm | W3: -
A4: Breite | B4: B_R | C4: m | D4: 8 | E4: Wärmekapazität Luftvolumen | F4: C_A | G4: m2 | H4: =H3*H21*H22 -> 494113.6652 | S4: Gipsplatte | T4: 0.3 | U4: 3 | V4: =W$4*T4/U4*1000 -> 10 | W4: 0.1
A5: Höhe | B5: H_R | C5: m | D5: 3 | S5: Beton | T5: 2.1 | U5: 3 | V5: =W$4*T5/U5*1000 -> 70
A6: Glasfläche der Fenster | B6: A_F | C6: m2 | D6: 41 | E6: Gesamte Wärmekapazität | F6: C_tot | G6: J/K | H6: =H4+H9+H15 -> 113294113.7 | S6: Holz | T6: 0.15 | U6: 3 | V6: 5
A7: Geschossdecke
A8: Dicke | B8: D_D | C8: m | D8: 0.25 | E8: Deckenfläche | F8: A_D | G8: m2 | H8: =D3*D4 -> 144
A9: Dichte | B9: rho_D | C9: kg/m3 | D9: 2400 | E9: Wärmekapazität Geschossdecke | F9: C_R | G9: J/K | H9: =H8*D8*D9*D10 -> 86400000
A10: Spezifische Wärmekapazität | B10: cp_D | C10: J/kgK | D10: 1000 | E10: Anzahl Knoten | F10: n_D | G10: - | H10: 20
A11: Wärmeleitfähigkeit | B11: lam_D | D11: 2.5 | E11: Maximale Dicke der Randschicht | F11: s_D | G11: m | H11: =H43*D11/E46 -> 0
A12: Emissivität | B12: eps_D | C12: - | D12: 0.93 | E12: Erf. Anzahl Knoten | F12: n_erf | G12: - | H12: =ROUNDUP(D8/H11,0) -> 
A13: Wände und Boden | E13: Dicke Oberflächenschicht | F13: s_DO | G13: m | H13: =D8/(2*H10-1) -> 0.00641025641
A14: Mittlere aktive Dicke | B14: D_W | C14: m | D14: 0.04 | E14: Wand+Bodenfläche | F14: A_R | G14: m2 | H14: =2*(D3*D5+D4*D5)+D3*D4 -> 300
A15: Mittlere Dichte | B15: rho_W | C15: kg/m3 | D15: 2200 | E15: Wärmekapazität Wand+Boden | F15: C_R | G15: J/K | H15: =H14*D14*D15*D16 -> 26400000
A16: Mittlere spezifische Wärmekapazität | B16: cp_W | C16: J/kgK | D16: 1000 | E16: Anzahl Knoten | F16: n_D | G16: - | H16: 10
A17: Mittlere Wärmeleitfähigkeit | B17: lam_D | D17: 1.5 | E17: Maximale Dicke der Randschicht | F17: s_D | G17: m | H17: =H43*D17/E46 -> 0
A18: Mittlere Emissivität | B18: eps_W | C18: - | D18: 0.93 | E18: Erf. Anzahl Knoten | F18: n_erf | G18: - | H18: =ROUNDUP(D14/H17,0) -> 
A19: Luft
A20: Anfangstemperatur | B20: T_init | C20: °C | D20: 26 | E20: Taupunkttemperatur | F20: T_tau | H20: =Taupunkt(D20,D21) -> 17.57486444
A21: Rel. Luftfeuchte | B21: phi_A | C21: - | D21: 0.6 | E21: Dichte | F21: rho_A | H21: =rho_Luft_phi(D20,D21,D23) -> 1.109233635
A22: Höhe über Meer | B22: h | C22: m | D22: 450 | E22: Spezifische Wärmekapazität | F22: cp_A | H22: =cp_Luft_phi(D20,D21,D23) -> 1031.145825 | I22: Anteil
A23: Luftdruck | B23: p_A | C23: Pa | D23: =Int_Hoehenformel(D22) -> 96027.47646 | I23: Decke %
A24: Kapillarrohrmatte | B24: A_K | C24: m2 | D24: 60 | E24: Abminderungsfaktor lambda Oberfl. | F24: R_K | G24: - | H24: 1 | I24: =D24/H8 -> 0.4166666667
A25: Kühlsegel
A26: Fläche pro Modul | B26: A_P | C26: m2 | D26: ='Konvektion+Strahlung'!C5 -> 2.045725 | E26: Gesamtfläche | F26: A_S | G26: m2 | H26: =D26*D27 -> 100.240525 | I26: =H26/H8 -> 0.6961147569
A27: Anzahl Module | B27: n_P | C27: - | D27: 49
A28: Abstand zur Decke | B28: s_P | C28: m | D28: 0.1
E29: Leistung zu Beginn | F29: Qs_P | G29: W | H29: =Leistungsdichte_Potenzfunktion(D31,D32,D20,D38)*H26 -> 6671.778579
A30: Leistungsdaten nach Datenblatt | E30: Strahlungsaustausch Decke
A31: Wärmeübertragungskoeffizient | B31: k | C31: W/(m2Kn) | D31: ='Konvektion+Strahlung'!K9 -> 10.42489746 | E31: Wärmeübertragungskoeffizient | F31: k_r,D | G31: W/(m2Kn) | H31: ='Konvektion+Strahlung'!K29 -> 4.41141884
A32: Exponent | B32: n | C32: - | D32: ='Konvektion+Strahlung'!L9 -> 1.034665818 | E32: Exponent | F32: n_r,D | G32: - | H32: ='Konvektion+Strahlung'!L29 -> 0.9774434738
A33: Leistungsparameter für Konvektion | E33: Strahlungsaustausch Raum
A34: Wärmeübertragungskoeffizient | B34: k_c | C34: W/(m2Kn) | D34: ='Konvektion+Strahlung'!K49 -> 1.173312441 | E34: Wärmeübertragungskoeffizient | F34: k_r,B | G34: W/(m2Kn) | H34: ='Konvektion+Strahlung'!K30 -> 4.894703778
A35: Exponent | B35: n_c | C35: - | D35: ='Konvektion+Strahlung'!L49 -> 1.339972246 | E35: Exponent | F35: n_r,B | G35: - | H35: ='Konvektion+Strahlung'!L30 -> 0.9774434738
A37: Betriebsbedingungen | B37: Gesamtsystem, WP | E37: Entzogene Wärmemengen | F37: kJ | G37: kWh
A38: Mittlere Fluidtemperatur | B38: T_l | C38: °C | D38: 20 | E38: Decke | F38: -85126.83357 | G38: =-F38/3600 -> 23.64634266
A39: Startzeit | C39: h | D39: 22 | E39: Wände+Boden | F39: -81116.25338 | G39: =-F39/3600 -> 22.53229261 | H39: Anteil
A40: Zeitdauer | C40: h | D40: 9 | E40: Luft | F40: -1489.688275 | G40: 0.4138022986 | H40: % | T40: Vergleichsrechnung | V40: kWh | W40: unterschiedliche Grädigkeit und Kollektor
A41: WP-Betrieb vor Free Cooling | C41: h | D41: 0 | E41: Total | F41: =SUM(F38:F40) -> -167732.7752 | G41: 46.59243756 | H41: =G41/G42 -> 1.097431395 | T41: 4K, P3 | V41: 30.21112713
A42: Vorgaben für die Simulation | E42: Erforderlich | F42: =-G42*3600 -> -152841.24 | G42: =C52 -> 42.4559 | H42: SIA | T42: 2K, P3 | V42: 35.73684036
A43: Kühlsegelmodell | B43: Potenzfunktion | F43: Grädigkeit Wärmeübertrager | T43: 4K, P5 | V43: 37.44419839
A44: Wärmeübertrager Free Cooling | B44: Qs_0 | C44: kW | D44: 2 | F44: ΔT_0 | G44: K | H44: 2 | T44: 2K, P5 | V44: 45.80861693
A45: Datensatz Wetterdaten | B45: July, clear, warm (6. Juli) | T45: Erforderlich | V45: =G42 -> 42.4559
A46: Konvektion Decke | B46: Vorgabe | E46: 3
A47: Konvektion Wand+Boden | B47: Vorgabe | E47: 3
A49: Daten nach Auslegung HSLU | C49: Büro
A50: Energiebezugsfläche Büro | B50: m2 | C50: =D3*D4 -> 144
A51: Energiebezugsfläche Gebäude | C51: 2268
A52: Abwärme Büro | B52: kWh | C52: 42.4559 | E52: Mittlere Entzugsleistung | F52: W | G52: =C52*1000/D40 -> 4717.322222
A53: Abwärme Gebäude | B53: kWh | C53: =C52*C51/C50 -> 668.680425 | F53: W | G53: =C53*1000/D41 -> 
A54: Abschätzung des Volumens von Speichern
C55: Wasser | D55: Kies-Wasser Speicher | T55: Vergleichsrechnung | V55: kWh | W55: unterschiedliche Umgebungsbedingungen
A56: Spezifische Wärmekapazität | B56: J/kgK | C56: 4180 | T56: July, clear, warm | V56: 35.73684036
A57: Dichte | B57: kg/m3 | C57: 1000 | T57: July, grey | V57: 27.6832246
A58: Temperaturhub | B58: K | C58: 5 | D58: 5 | T58: May, clear, warm | V58: 34.27709992
A59: Spezifische Wärmekapazität | B59: J/m3K | D59: 2800 | T59: May, grey | V59: 41.69977269
A60: Erforderliches Volumen | B60: m3 | C60: =C53*1000*3600/(C56*C57*C58) -> 115.1794033 | D60: =C53*3600/(D58*D59) -> 171.946395 | E60: Länge | F60: m | G60: 16 | T60: Erforderlich | V60: =V45 -> 42.4559
A61: Durchmesser | C61: 4 | E61: Tiefe | F61: m | G61: 2
A62: Höhe | C62: =C60/(C61^2*3.1415/4) -> 9.16595602 | E62: Breite | F62: m | G62: =D60/(G60*G61) -> 5.373324844
A63: Für Diagramm | C63: Büro | D63: Gebäude
A64: Energiebezugsfläche | B64: m2 | C64: =C50 -> 144 | D64: 2400
A65: Abzuführende Wärme | B65: kWh | C65: =C52 -> 42.4559 | D65: 593.959
A66: Puffer ΔT = 5K | B66: m3 | C66: =C$52*1000*3600/($C$56*$C$57*5) -> 7.31297799 | D66: =C$53*1000*3600/($C$56*$C$57*5) -> 115.1794033
A67: Kies ΔT = 5K | B67: m3 | C67: =C$52*3600/(D$59*5) -> 10.91723143 | D67: =C$53*3600/(D$59*5) -> 171.946395
A68: Puffer ΔT = 10K | B68: m3 | C68: =C$52*1000*3600/($C$56*$C$57*10) -> 3.656488995 | D68: =C$53*1000*3600/($C$56*$C$57*10) -> 57.58970167
A69: Kies ΔT = 10K | B69: m3 | C69: =C$52*3600/(D$59*10) -> 5.458615714 | D69: =C$53*3600/(D$59*10) -> 85.9731975

Sheet Leistung
B1: 1 | C1: 1.999166667 | D1: 2.998333333 | E1: 3.9975 | F1: 4.996666667 | G1: 5.995833333 | H1: 6.995 | I1: 7.994166667 | J1: 8.993333333 | K1: 9.9925
B2: 6.673053737 | C2: 5.853949068 | D2: 5.496813241 | E2: 5.189808444 | F2: 4.91767786 | G2: 4.67291218 | H2: 4.450741041 | I2: 4.247812003 | J2: 4.06159948 | K2: 3.890095717
B3: 6.672886424 | C3: 5.85952381 | D3: 5.498017667 | E3: 5.188568268 | F3: 4.914731616 | G3: 4.676024473 | H3: 4.45138039 | I3: 4.248782072 | J3: 4.061559407 | K3: 3.890248306

Sheet Kuehlsegel
A1: t | B1: 1 | C1: 1.999166667 | D1: 2.998333333 | E1: 3.9975 | F1: 4.996666667 | G1: 5.995833333 | H1: 6.995 | I1: 7.994166667 | J1: 8.993333333 | K1: 9.9925
A2: T_l | B2: 20 | C2: 20 | D2: 20 | E2: 20 | F2: 20 | G2: 20 | H2: 20 | I2: 20 | J2: 20 | K2: 20
A3: Qs_S | B3: 6673.053737 | C3: 5853.949068 | D3: 5496.813241 | E3: 5189.808444 | F3: 4917.67786 | G3: 4672.91218 | H3: 4450.741041 | I3: 4247.812003 | J3: 4061.59948 | K3: 3890.095717

Sheet Koll
A1: t | B1: 1 | C1: 1.999166667 | D1: 2.998333333 | E1: 3.9975 | F1: 4.996666667 | G1: 5.995833333 | H1: 6.995 | I1: 7.994166667 | J1: 8.993333333 | K1: 9.9925
A2: T_a | B2: 22.8 | C2: 22.8 | D2: 20.7 | E2: 18.6 | F2: 18.6 | G2: 17.1 | H2: 15.3 | I2: 14.3 | J2: 13.5 | K2: 13.3
A3: T_l_Koll | B3: 27.67219089 | C3: 27.04782807 | D3: 24.18545684 | E3: 22.29484477 | F3: 22.76613321 | G3: 21.05153178 | H3: 19.19300412 | I3: 17.74599683 | J3: 17.26300662 | K3: 16.69252711
A4: Qs_Koll | B4: 6672.886424 | C4: 5859.52381 | D4: 5498.017667 | E4: 5188.568268 | F4: 4914.731616 | G4: 4676.024473 | H4: 4451.38039 | I4: 4248.782072 | J4: 4061.559407 | K4: 3890.248306

Sheet Waerme
B1: 0 | C1: 0.9991666667 | D1: 1.998333333 | E1: 2.9975 | F1: 3.996666667 | G1: 4.995833333 | H1: 5.995 | I1: 6.994166667 | J1: 7.993333333 | K1: 8.9925
B2: 0 | C2: -9794.60418 | D2: -19331.64088 | E2: -28822.63954 | F2: -38299.76346 | G2: -47758.44375 | H2: -57185.64496 | I2: -66566.07489 | J2: -75884.51547 | K2: -85126.83357
B3: 0 | C3: -12954.63605 | D3: -24879.85039 | E3: -35633.16218 | F3: -45315.89129 | G3: -54032.96326 | H3: -61884.06837 | I3: -68960.97451 | J3: -75346.81713 | K3: -81116.25338
B4: 0 | C4: -634.0512516 | D4: -786.1354061 | E4: -919.2436131 | F4: -1038.314554 | G4: -1145.875307 | H4: -1243.636955 | I4: -1332.878547 | J4: -1414.615426 | K4: -1489.688275

Sheet Simulation
B1: Varianten der Simulation
B2: Mittlere Fluidtemperatur vorgegeben
B3: Daraus ergibt sich die abzuführende Leistung
B4: Aus der abzuführenden Leistung und den Wetterdaten kann die erforderliche mittlere Abgabetemperatur berechnet werden.
B5: Bei Maximalleistung Grädigkeit des WU definieren. Diese nimmt linear mit abnehmender Leistung ab.
B6: Daraus ergibt sich die mittlere Abgabetemperatur bei Free Cooling
B8: Mittlere Fluidtemperatur vorgegeben
B9: Daraus ergibt sich die abzuführende Leistung
B10: Bei Maximalleistung Grädigkeit des WU definieren. Diese nimmt linear mit abnehmender Leistung ab.
B11: Daraus ergibt sich die mittlere Abgabetemperatur
B13: Bei Maximalleistung Grädigkeit des WU definieren. Diese nimmt linear mit abnehmender Leistung ab.
B14: Free Cooling:
B15: Annahme einer mittleren Fluidtemperatur T_l=T_i-1
B16: Kühlbetrieb starten, falls T_a<T_i-2
B17: Kühlbetrieb stoppen, falls T_i<=T_a+2
A18: 1 | B18: Berechnen der Kühlleistung
A19: 2 | B19: Berechnen der Grädigkeit
A20: 3 | B20: Berechnen der Abgabetemperatur
A21: 4 | B21: Berechnen der Abgabeleistung
A22: 5 | B22: Falls Kühlleistung > Abgabeleistung T_l=T_l + delta_T
A23: 6 | B23: Falls Kühlleistung < Abgabeleistung T_l=T_l - delta_T
A24: 7 | B24: Bei Vorzeichenwechsel delta_T=delta_T/2
A25: 8 | B25: Wiederholen ab 1 bis Leistungen nicht mehr als 1% abweichen
B26: Resultate sind T_l, T_K, Qs, Q
B28: Wärmepumpe:
B29: Mittlere Fluidtemperatur vorgegeben
B30: Daraus ergibt sich die abzuführende Leistung
B31: Aus der abzuführenden Leistung und den Wetterdaten kann die erforderliche mittlere Abgabetemperatur berechnet werden.
B32: Grädigkeit von Verdampfer und Kondensator vorgeben
B33: Temperaturhub berechnen

Sheet Kollektormodelle
A1: Kollektor | B1: eta0,b | C1: Κ | D1: Kd | E1: a1 | F1: a2 | G1: a3 | H1: a4 | I1: a5 | J1: a6 | K1: a7 | L1: a8 | M1: A | N1: Parameter bestimmt nach der modifizierten ISO 9806 | V1: Kollektor
A2: Typ | E2: W/(m²K) | F2: W/(m²K²) | G2: Ws/(m3K) | I2: Ws/(m2K) | J2: s/m | K2: s/m | L2: W/(m2K4) | M2: m2 | N2: auf dem Prüfstand des SPF in Rapperswil | V2: Typ
A3: P1 | B3: 0.653 | C3: 1479 | D3: 1 | E3: 19.679 | F3: 0.02 | G3: 1.398 | H3: 0.379 | I3: 18135.3 | J3: 0.019 | K3: 0.03 | L3: 0 | M3: 2 | V3: P1
A4: P2 | B4: 0.244 | C4: 727.4 | D4: 1 | E4: 23.83 | F4: 0 | G4: 2.87 | H4: 0.732 | I4: 13608.7 | J4: 0 | K4: 0.01 | L4: 0 | M4: 2 | V4: P2
A5: P3 | B5: 0.402 | C5: 4.363 | D5: 0.887 | E5: 24.988 | F5: 0.15 | G5: 4.036 | H5: 0.058 | I5: 6819.4 | J5: 0.032 | K5: 0.083 | L5: 0 | M5: 2 | V5: P3
A6: P4 | B6: 0.623 | C6: 2213.1 | D6: 1 | E6: 22.424 | F6: 0.032 | G6: 5.01 | H6: 0.03 | I6: 3279.3 | J6: 0.026 | K6: 0.192 | L6: 0 | M6: 2 | V6: P4
A7: P5 | B7: 0.375 | C7: 9.117 | D7: 1 | E7: 56.352 | F7: 0.054 | G7: 5.955 | H7: 0 | I7: 2631.7 | J7: 0 | K7: 0.068 | L7: 0 | M7: 2 | V7: P5
A8: P6 | B8: 0.385 | C8: 61.556 | D8: 1 | E8: 17.141 | F8: 0 | G8: 1.802 | H8: 0.072 | I8: 6662.4 | J8: 0.036 | K8: 0 | L8: 0 | M8: 2 | V8: P6

Sheet Umgebungsprofile
A1: Typische Tagesdatensätze für Umgebungsbedingungen
B2: May, clear, warm (13. Mai) | F2: May, grey (1. Mai) | J2: July, clear, warm (6. Juli) | N2: July, grey (30. Juli) | R2: Test
A3: Zeit | B3: T_a | C3: EL | D3: G | E3: v | F3: T_a | G3: EL | H3: G | I3: v | J3: T_a | K3: EL | L3: G | M3: v | N3: T_a | O3: EL | P3: G | Q3: v | R3: T_a | S3: EL | T3: G | U3: v | V3: T_sky
A4: h | B4: °C | C4: W/Km2 | D4: W/Km2 | E4: m/s | F4: °C | G4: W/Km2 | H4: W/Km2 | I4: m/s | J4: °C | K4: W/Km2 | L4: W/Km2 | M4: m/s | N4: °C | O4: W/Km2 | P4: W/Km2 | Q4: m/s | R4: °C | S4: W/Km2 | T4: W/Km2 | U4: m/s | V4: K
A5: 12 | B5: 23.8 | C5: 338 | D5: 779 | E5: 2.8 | F5: 16.2 | G5: 361 | H5: 266 | I5: 7.8 | J5: 24.5 | K5: 327 | L5: 908 | M5: 5.8 | N5: 21.3 | O5: 404 | P5: 141 | Q5: 1.9 | R5: 20 | S5: 418.775 | T5: 0 | U5: 2 | V5: =T_Sky(S5) -> 19.99996599
A6: 13 | B6: 25.2 | C6: 339 | D6: 830 | E6: 3.8 | F6: 17.3 | G6: 365 | H6: 280 | I6: 6.4 | J6: 26.1 | K6: 328 | L6: 985 | M6: 6.5 | N6: 21.6 | O6: 405 | P6: 149 | Q6: 1.4 | R6: 20 | S6: 418.775 | T6: 0 | U6: 2 | V6: =T_Sky(S6) -> 19.99996599
A7: 14 | B7: 26.3 | C7: 343 | D7: 836 | E7: 1.9 | F7: 17.7 | G7: 368 | H7: 282 | I7: 2.8 | J7: 27.4 | K7: 326 | L7: 1010 | M7: 7.7 | N7: 21.9 | O7: 405 | P7: 169 | Q7: 1.2 | R7: 20 | S7: 418.775 | T7: 0 | U7: 2 | V7: =T_Sky(S7) -> 19.99996599
A8: 15 | B8: 27.1 | C8: 343 | D8: 812 | E8: 0.8 | F8: 18.3 | G8: 367 | H8: 289 | I8: 2.8 | J8: 28.4 | K8: 329 | L8: 979 | M8: 7.7 | N8: 22.1 | O8: 401 | P8: 175 | Q8: 5.8 | R8: 20 | S8: 418.775 | T8: 0 | U8: 2 | V8: =T_Sky(S8) -> 19.99996599
A9: 16 | B9: 27.6 | C9: 345 | D9: 743 | E9: 1.7 | F9: 18.4 | G9: 367 | H9: 277 | I9: 6.4 | J9: 28.9 | K9: 329 | L9: 901 | M9: 10.2 | N9: 22.3 | O9: 398 | P9: 167 | Q9: 4.1 | R9: 20 | S9: 418.775 | T9: 0 | U9: 2 | V9: =T_Sky(S9) -> 19.99996599
A10: 17 | B10: 27.7 | C10: 347 | D10: 620 | E10: 0.9 | F10: 18.4 | G10: 368 | H10: 220 | I10: 2.6 | J10: 29 | K10: 333 | L10: 781 | M10: 14.6 | N10: 22.3 | O10: 402 | P10: 146 | Q10: 6.5 | R10: 20 | S10: 418.775 | T10: 0 | U10: 2 | V10: =T_Sky(S10) -> 19.99996599
A11: 18 | B11: 27.4 | C11: 349 | D11: 472 | E11: 0.7 | F11: 18.2 | G11: 367 | H11: 169 | I11: 4.6 | J11: 28.7 | K11: 335 | L11: 625 | M11: 11 | N11: 22.2 | O11: 404 | P11: 101 | Q11: 6.5 | R11: 20 | S11: 418.775 | T11: 0 | U11: 2 | V11: =T_Sky(S11) -> 19.99996599
A12: 19 | B12: 26.7 | C12: 353 | D12: 304 | E12: 4.6 | F12: 17.8 | G12: 370 | H12: 101 | I12: 1.3 | J12: 27.8 | K12: 334 | L12: 444 | M12: 12.4 | N12: 22 | O12: 400 | P12: 74.1 | Q12: 2.9 | R12: 20 | S12: 418.775 | T12: 0 | U12: 2 | V12: =T_Sky(S12) -> 19.99996599
A13: 20 | B13: 25.6 | C13: 360 | D13: 144 | E13: 3.8 | F13: 17.5 | G13: 368 | H13: 41.3 | I13: 1 | J13: 26.4 | K13: 337 | L13: 257 | M13: 5.8 | N13: 21.8 | O13: 401 | P13: 33.2 | Q13: 3.9 | R13: 20 | S13: 418.775 | T13: 0 | U13: 2 | V13: =T_Sky(S13) -> 19.99996599
A14: 21 | B14: 24.3 | C14: 360 | D14: 9.6 | E14: 4.2 | F14: 17 | G14: 363 | H14: 1.2 | I14: 0.5 | J14: 24.7 | K14: 343 | L14: 93.7 | M14: 4.1 | N14: 21 | O14: 400 | P14: 3.1 | Q14: 3.1 | R14: 20 | S14: 418.775 | T14: 0 | U14: 2 | V14: =T_Sky(S14) -> 19.99996599
A15: 22 | B15: 22.8 | C15: 361 | D15: 0.04 | E15: 1.1 | F15: 16.4 | G15: 358 | H15: 0.004 | I15: 0.3 | J15: 22.8 | K15: 340 | L15: 0.4 | M15: 4.5 | N15: 20.3 | O15: 398 | P15: 0.01 | Q15: 1.2 | R15: 20 | S15: 418.775 | T15: 0 | U15: 2 | V15: =T_Sky(S15) -> 19.99996599 | W15: 20.3 | X15: =N15-W15 -> 0
A16: 23 | B16: 21.2 | C16: 357 | D16: 0 | E16: 1 | F16: 15.8 | G16: 353 | H16: 0 | I16: 1.1 | J16: 20.7 | K16: 344 | L16: 0 | M16: 7.7 | N16: 19.5 | O16: 397 | P16: 0 | Q16: 0.2 | R16: 20 | S16: 418.775 | T16: 0 | U16: 2 | V16: =T_Sky(S16) -> 19.99996599 | W16: 19.5 | X16: =N16-W16 -> 0
A17: 24 | B17: 19.7 | C17: 354 | D17: 0 | E17: 1 | F17: 15.2 | G17: 347 | H17: 0 | I17: 1.5 | J17: 18.6 | K17: 342 | L17: 0 | M17: 4.5 | N17: 18.6 | O17: 392 | P17: 0 | Q17: 0.1 | R17: 20 | S17: 418.775 | T17: 0 | U17: 2 | V17: =T_Sky(S17) -> 19.99996599 | W17: 18.6 | X17: 0
A18: 1 | B18: 18.8 | C18: 346 | D18: 0 | E18: 4.6 | F18: 16.4 | G18: 334 | H18: 0 | I18: 2.1 | J18: 18.6 | K18: 354 | L18: 0 | M18: 1.7 | N18: 18.9 | O18: 394 | P18: 0 | Q18: 2.1 | R18: 20 | S18: 418.775 | T18: 0 | U18: 2 | V18: =T_Sky(S18) -> 19.99996599 | W18: 18.6 | X18: 0.3
A19: 2 | B19: 17.5 | C19: 344 | D19: 0 | E19: 2.3 | F19: 15.9 | G19: 326 | H19: 0 | I19: 2.8 | J19: 17.1 | K19: 352 | L19: 0 | M19: 1.1 | N19: 18.9 | O19: 392 | P19: 0 | Q19: 2.1 | R19: 20 | S19: 418.775 | T19: 0 | U19: 2 | V19: =T_Sky(S19) -> 19.99996599 | W19: 18.9 | X19: 0
A20: 3 | B20: 16.1 | C20: 341 | D20: 0 | E20: 1.3 | F20: 15.3 | G20: 325 | H20: 0 | I20: 1 | J20: 15.3 | K20: 341 | L20: 0 | M20: 0.4 | N20: 18.3 | O20: 389 | P20: 0 | Q20: 1.5 | R20: 20 | S20: 418.775 | T20: 0 | U20: 2 | V20: =T_Sky(S20) -> 19.99996599 | W20: 18.9 | X20: -0.6
A21: 4 | B21: 15.4 | C21: 337 | D21: 0 | E21: 3.5 | F21: 15 | G21: 321 | H21: 0 | I21: 0.2 | J21: 14.3 | K21: 337 | L21: 0 | M21: 1.9 | N21: 18.8 | O21: 393 | P21: 0 | Q21: 0.8 | R21: 20 | S21: 418.775 | T21: 0 | U21: 2 | V21: =T_Sky(S21) -> 19.99996599 | W21: 18.3 | X21: 0.5
A22: 5 | B22: 14.9 | C22: 334 | D22: 0 | E22: 6.1 | F22: 14.7 | G22: 326 | H22: 0 | I22: 0.1 | J22: 13.5 | K22: 335 | L22: 0 | M22: 0.5 | N22: 19.1 | O22: 394 | P22: 0 | Q22: 0.5 | R22: 20 | S22: 418.775 | T22: 0 | U22: 2 | V22: =T_Sky(S22) -> 19.99996599 | W22: 18.8 | X22: 0.3
A23: 6 | B23: 14.9 | C23: 339 | D23: 0 | E23: 7 | F23: 14.3 | G23: 339 | H23: 0 | I23: 0.1 | J23: 13.3 | K23: 331 | L23: 1 | M23: 1.1 | N23: 19.1 | O23: 394 | P23: 0 | Q23: 0.7 | R23: 20 | S23: 418.775 | T23: 0 | U23: 2 | V23: =T_Sky(S23) -> 19.99996599 | W23: 19.1 | X23: 0
A24: 7 | B24: 15.5 | C24: 340 | D24: 52.8 | E24: 6.1 | F24: 14.4 | G24: 349 | H24: 4 | I24: 0.3 | J24: 14.4 | K24: 329 | L24: 93.6 | M24: 2.4 | N24: 18.9 | O24: 394 | P24: 4 | Q24: 1.4 | R24: 20 | S24: 418.775 | T24: 0 | U24: 2 | V24: =T_Sky(S24) -> 19.99996599 | W24: 19.1
A25: 8 | B25: 16.8 | C25: 343 | D25: 192 | E25: 3.5 | F25: 15 | G25: 353 | H25: 50.8 | I25: 1.1 | J25: 16.2 | K25: 327 | L25: 257 | M25: 0.4 | N25: 19.4 | O25: 397 | P25: 33.9 | Q25: 0.7 | R25: 20 | S25: 418.775 | T25: 0 | U25: 2 | V25: =T_Sky(S25) -> 19.99996599
A26: 9 | B26: 18.5 | C26: 343 | D26: 358 | E26: 3.8 | F26: 15.5 | G26: 354 | H26: 109 | I26: 0.8 | J26: 18.2 | K26: 325 | L26: 444 | M26: 1.5 | N26: 20 | O26: 399 | P26: 63.9 | Q26: 0.8 | R26: 20 | S26: 418.775 | T26: 0 | U26: 2 | V26: =T_Sky(S26) -> 19.99996599
A27: 10 | B27: 20.3 | C27: 342 | D27: 522 | E27: 2.5 | F27: 16.2 | G27: 355 | H27: 184 | I27: 2.3 | J27: 20.4 | K27: 319 | L27: 626 | M27: 2.9 | N27: 20.4 | O27: 401 | P27: 103 | Q27: 4.8 | R27: 20 | S27: 418.775 | T27: 0 | U27: 2 | V27: =T_Sky(S27) -> 19.99996599
A28: 11 | B28: 22.1 | C28: 339 | D28: 665 | E28: 3.8 | F28: 16.8 | G28: 359 | H28: 227 | I28: 4.2 | J28: 22.5 | K28: 323 | L28: 785 | M28: 5.8 | N28: 21 | O28: 403 | P28: 133 | Q28: 2.4 | R28: 20 | S28: 418.775 | T28: 0 | U28: 2 | V28: =T_Sky(S28) -> 19.99996599
A30: Umgebungsprofile
A31: May, clear, warm (13. Mai)
A32: May, grey (1. Mai)
A33: July, clear, warm (6. Juli)
A34: July, grey (30. Juli)
A35: Test

Sheet Decke
B1: 1 | C1: 1.999166667 | D1: 2.998333333 | E1: 3.9975 | F1: 4.996666667 | G1: 5.995833333 | H1: 6.995 | I1: 7.994166667 | J1: 8.993333333 | K1: 9.9925
A2: 0 | B2: 26 | C2: 25.48336498 | D2: 25.28101766 | E2: 25.12673361 | F2: 24.99502651 | G2: 24.87569033 | H2: 24.76368748 | I2: 24.65642827 | J2: 24.55257088 | K2: 24.45141719
A3: 0.0125 | B3: 26 | C3: 25.56998882 | D3: 25.36768829 | E3: 25.21338609 | F3: 25.0816093 | G3: 24.96208673 | H3: 24.84975323 | I3: 24.74201579 | J3: 24.63754102 | K3: 24.53564423
A4: 0.025 | B4: 26 | C4: 25.64709078 | D4: 25.4477315 | E4: 25.29460454 | F4: 25.16338113 | G4: 25.04402545 | H4: 24.93157747 | I4: 24.82350748 | J4: 24.71852483 | K4: 24.61597591
A5: 0.0375 | B5: 26 | C5: 25.71414021 | D5: 25.52069245 | E5: 25.36999248 | F5: 25.23997569 | G5: 25.1211551 | H5: 25.00881618 | I5: 24.90056325 | J5: 24.79518473 | K5: 24.69207676
A6: 0.05 | B6: 26 | C6: 25.77157222 | D6: 25.58671421 | E6: 25.43961979 | F6: 25.31142697 | G6: 25.19348789 | H6: 25.0814671 | I6: 24.97317058 | J6: 24.86750051 | K6: 24.76392056
A7: 0.0625 | B7: 26 | C7: 25.82000388 | D7: 25.64600861 | E7: 25.50359082 | F7: 25.37778774 | G7: 25.26104695 | H7: 25.14953493 | I7: 25.04132189 | J7: 24.93545588 | K7: 24.8314845
A8: 0.075 | B8: 26 | C8: 25.86019516 | D8: 25.69884914 | E8: 25.56204147 | F8: 25.43912802 | G8: 25.3238654 | H8: 25.21303067 | I8: 25.10501407 | J8: 24.99903814 | K8: 24.89474896
A9: 0.0875 | B9: 26 | C9: 25.89300431 | D9: 25.7455621 | E9: 25.61513548 | F9: 25.49553304 | G9: 25.3819852 | H9: 25.27197091 | I9: 25.16424801 | J9: 25.05823786 | K9: 24.95369725
A10: 0.1 | B10: 26 | C10: 25.91934165 | D10: 25.78651628 | E10: 25.66305998 | F10: 25.54710089 | G10: 25.43545574 | H10: 25.32637705 | I10: 25.21902812 | J10: 25.11304848 | K10: 25.00831534
A11: 0.1125 | B11: 26 | C11: 25.94012582 | D11: 25.82211163 | E11: 25.70602045 | F11: 25.59393985 | G11: 25.48433239 | H11: 25.37627434 | I11: 25.26936171 | J11: 25.16346602 | K11: 25.05859162
A12: 0.125 | B12: 26 | C12: 25.95624566 | D12: 25.85276741 | E12: 25.7442352 | F12: 25.63616548 | G12: 25.52867487 | H12: 25.42169099 | I12: 25.31525845 | J12: 25.2094886 | K12: 25.10451661
A13: 0.1375 | B13: 26 | C13: 25.96852978 | D13: 25.87891033 | E13: 25.77792962 | F13: 25.67389747 | G13: 25.56854547 | H13: 25.46265718 | I13: 25.35672977 | J13: 25.25111616 | K13: 25.14608274
A14: 0.15 | B14: 26 | C14: 25.97772497 | D14: 25.90096295 | E14: 25.80733023 | F14: 25.70725656 | G14: 25.60400739 | H14: 25.49920402 | I14: 25.39378822 | J14: 25.28834999 | K14: 25.18328405
A15: 0.1625 | B15: 26 | C15: 25.98448329 | D15: 25.91933279 | E15: 25.83265875 | F15: 25.73636126 | G15: 25.63512291 | H15: 25.53136257 | I15: 25.42644695 | J15: 25.32119242 | K15: 25.21611595
A16: 0.175 | B16: 26 | C16: 25.98935708 | D16: 25.93440246 | E16: 25.85412641 | F16: 25.76132477 | G16: 25.6619517 | H16: 25.55916288 | I16: 25.45471907 | J16: 25.34964642 | K16: 25.24457502
A17: 0.1875 | B17: 26 | C17: 25.99280028 | D17: 25.94652075 | E17: 25.87192849 | F17: 25.78225202 | G17: 25.68454923 | H17: 25.58263309 | I17: 25.47861716 | J17: 25.37371533 | K17: 25.26865876
A18: 0.2 | B18: 26 | C18: 25.99517436 | D18: 25.95599515 | E18: 25.88623934 | F18: 25.79923689 | G18: 25.70296518 | H18: 25.60179855 | I18: 25.49815276 | J18: 25.3934025 | K18: 25.2883654
A19: 0.2125 | B19: 26 | C19: 25.99675688 | D19: 25.96308547 | E19: 25.89720799 | F19: 25.81235977 | G19: 25.71724219 | H19: 25.6166811 | I19: 25.51333593 | J19: 25.40871106 | K19: 25.30369375
A20: 0.225 | B20: 26 | C20: 25.99775106 | D20: 25.96799885 | E20: 25.90495442 | F20: 25.82168546 | G20: 25.72741467 | H20: 25.62729841 | I20: 25.52417491 | J20: 25.41964367 | K20: 25.31464302
A21: 0.2375 | B21: 26 | C21: 25.99829464 | D21: 25.9708859 | E21: 25.9095665 | F21: 25.82726151 | G21: 25.73350786 | H21: 25.63366349 | I21: 25.5306758 | J21: 25.42620239 | K21: 25.32121275
A22: 0.25 | B22: 26 | C22: 25.99846717 | D22: 25.97183803 | E22: 25.91109785 | F22: 25.82911694 | G22: 25.7355372 | H22: 25.63578429 | I22: 25.53284234 | J22: 25.42838848 | K22: 25.32340268

Sheet Wand
B1: 1 | C1: 1.999166667 | D1: 2.998333333 | E1: 3.9975 | F1: 4.996666667 | G1: 5.995833333 | H1: 6.995 | I1: 7.994166667 | J1: 8.993333333 | K1: 9.9925
A2: 0 | B2: 26 | C2: 25.43309344 | D2: 25.01251833 | E2: 24.63350935 | F2: 24.29228725 | G2: 23.98508479 | H2: 23.70836062 | I2: 23.45887105 | J2: 23.2336854 | K2: 23.03017584
A3: 0.004 | B3: 26 | C3: 25.45978711 | D3: 25.03662755 | E3: 24.65522748 | F3: 24.31183872 | G3: 24.00268876 | H3: 23.72422133 | I3: 23.47317472 | J3: 23.24659989 | K3: 23.04185143
A4: 0.008 | B4: 26 | C4: 25.48493009 | D4: 25.05933718 | E4: 24.67568505 | F4: 24.33025542 | G4: 24.01927094 | H4: 23.73916133 | I4: 23.48664797 | J4: 23.25876448 | K4: 23.05284894
A5: 0.012 | B5: 26 | C5: 25.50715313 | D5: 25.07941133 | E5: 24.69376893 | F5: 24.34653528 | G5: 24.03392902 | H5: 23.7523676 | I5: 23.49855746 | J5: 23.26951698 | K5: 23.06256961
A6: 0.016 | B6: 26 | C6: 25.52644194 | D6: 25.09683642 | E6: 24.70946673 | F6: 24.36066713 | G6: 24.046653 | H6: 23.76383118 | I6: 23.50889524 | J6: 23.27885026 | K6: 23.07100707
A7: 0.02 | B7: 26 | C7: 25.54278417 | D7: 25.1116007 | E7: 24.7227677 | F7: 24.3726413 | G7: 24.05743418 | H7: 23.77354432 | I7: 23.51765435 | J7: 23.28675815 | K7: 23.07815582
A8: 0.024 | B8: 26 | C8: 25.55616934 | D8: 25.12369417 | E8: 24.73366275 | F8: 24.38244955 | G8: 24.06626521 | H8: 23.78150043 | I8: 23.52482892 | J8: 23.2932354 | K8: 23.08401119
A9: 0.028 | B9: 26 | C9: 25.56658889 | D9: 25.13310868 | E9: 24.74214442 | F9: 24.39008518 | G9: 24.07314005 | H9: 23.78769411 | I9: 23.53041414 | J9: 23.29827772 | K9: 23.08856933
A10: 0.032 | B10: 26 | C10: 25.57403619 | D10: 25.13983788 | E10: 24.74820691 | F10: 24.39554294 | G10: 24.078054 | H10: 23.79212117 | I10: 23.53440626 | J10: 23.30188177 | K10: 23.09182729
A11: 0.036 | B11: 26 | C11: 25.57850646 | D11: 25.14387721 | E11: 24.75184606 | F11: 24.3988191 | G11: 24.08100372 | H11: 23.79477861 | I11: 23.53680261 | J11: 23.30404516 | K11: 23.09378291
A12: 0.04 | B12: 26 | C12: 25.57999687 | D12: 25.14522396 | E12: 24.75305938 | F12: 24.3999114 | G12: 24.08198719 | H12: 23.79566462 | I12: 23.53760157 | J12: 23.30476644 | K12: 23.09443492

Sheet Luft
A1: t | B1: 1 | C1: 1.999166667 | D1: 2.998333333 | E1: 3.9975 | F1: 4.996666667 | G1: 5.995833333 | H1: 6.995 | I1: 7.994166667 | J1: 8.993333333 | K1: 9.9925
A2: T_i | B2: 26 | C2: 24.76695708 | D2: 24.47119819 | E2: 24.21234194 | F2: 23.98078403 | G2: 23.77161005 | H2: 23.58149244 | I2: 23.40794383 | J2: 23.24898968 | K2: 23.1029951
